Workbook

Sheet IDENTIFICATION
B1: JABSCO PUMP PARTS AND PRICES | F1: LANCING MARINE | I1: CALL LANCING MARNE TO ORDER 01273-410025 | U1: ADMIN | V1: ADMIN
B2: MODEL NUMBER | C2: DESCRIPTION | D2: PRICE | F2: =HYPERLINK("mailto:DATA@LANCINGMARINE.COM", "Email: Data@Lancingmarine.com") -> Email: Data@Lancingmarine.com | I2: +44-1273-41005
B3: 52200-2011 | C3: =IFERROR(INDEX('Price List'!B:B,MATCH(B3,'Price List'!A:A,0),1),"NOT-FOUND") -> EU PMP 1 1/2 BSP PED NEO 200 | D3: =IFERROR(INDEX('Price List'!E:E,MATCH(B3,'Price List'!A:A,0),1),"NOT-FOUND") -> 553.4
B4: PORT TYPE | C4: PUMP SIZE | D4: MOUNT TYPE | F4: ALTERNATIVE MODEL | G4: DESCRIPTION | H4: WEIGHT | I4: PRICEBOOK
B5: =IFERROR(INDEX('Service Parts'!C:C,MATCH(B3,'Service Parts'!A:A,0),1),"-") -> 1-1/2" BSP | C5: =IFERROR(INDEX('Service Parts'!B:B,MATCH(B3,'Service Parts'!A:A,0),1),"-") -> 200 | D5: =IFERROR(INDEX('Service Parts'!D:D,MATCH(B3,'Service Parts'!A:A,0),1),"-") -> Foot | F5: =IFERROR(INDEX(Obsolete!C:C,MATCH(B3,Obsolete!B:B,0),1),"-") -> - | G5: =IFERROR(INDEX('Price List'!B:B,IF(U5="-",V5,U5),1),"-") -> - | H5: =IFERROR(INDEX('Price List'!D:D,U5,1),"-") -> - | I5: =IFERROR(INDEX('Price List'!E:E,U5,1),"-") -> - | U5: =IFERROR(MATCH(F5,'Price List'!A:A,0),"-") -> - | V5: -
B7: COMPONENT | C7: PART-NUM-VALUE | D7: ALTERNATIVE-PART | F7: PART-NUM-VALUE | G7: DESCRIPTION | H7: WEIGHT | I7: PRICEBOOK | K7: LINK | L7: URL | U7: ROW | V7: ALT-ROW
B8: KIT NUMBER | C8: =IFERROR(INDEX('Service Parts'!F:F,MATCH(B3,'Service Parts'!A:A,0),1),"-") -> SK407-0011 | D8: =IFERROR(INDEX(Obsolete!C:C,MATCH(TRIM(C8),Obsolete!B:B,0),1),"-") -> - | F8: =IFERROR(INDEX('Price List'!A:A,IF(U9="-",V9,U9),1),"NOT-FOUND") -> SK407-0011 | G8: =IFERROR(INDEX('Price List'!B:B,IF(U9="-",V9,U9),1),"-") -> KIT SERVICE 200 MP NEO | H8: =IFERROR(INDEX('Price List'!D:D,IF(U9="-",V9,U9),1),"-") -> 0.487 | I8: =IFERROR(INDEX('Price List'!E:E,IF(U9="-",V9,U9),1),"-") -> 183.3 | K8: =HYPERLINK(L8,"LANCING MARINE") -> LANCING MARINE | L8: https://www.lancingmarine.com/ | U8: =IFERROR(MATCH(C23,'Price List'!A:A,0),"-") -> - | V8: =IFERROR(MATCH(D23,'Price List'!A:A,0),"-") -> -
B9: GASKET/ O-RING | C9: =IFERROR(INDEX('Service Parts'!G:G,MATCH(B3,'Service Parts'!A:A,0),1),"-") -> 816 | D9: =IFERROR(INDEX(Obsolete!C:C,MATCH(TRIM(C9),Obsolete!B:B,0),1),"-") -> - | F9: =IFERROR(INDEX('Price List'!A:A,IF(U10="-",V10,U10),1),"NOT-FOUND") -> NOT-FOUND | G9: =IFERROR(INDEX('Price List'!B:B,IF(U10="-",V10,U10),1),"-") -> - | H9: =IFERROR(INDEX('Price List'!D:D,IF(U10="-",V10,U10),1),"-") -> - | I9: =IFERROR(INDEX('Price List'!E:E,IF(U10="-",V10,U10),1),"-") -> - | K9: =HYPERLINK(L9,"SEA WATER PUMPS") -> SEA WATER PUMPS | L9: https://www.lancingmarine.com/price-book/page-33/ | U9: =IFERROR(MATCH(C8,'Price List'!A:A,0),"-") -> 58 | V9: =IFERROR(MATCH(D8,'Price List'!A:A,0),"-") -> -
B10: IMPELLER | C10: =IFERROR(INDEX('Service Parts'!H:H,MATCH(B3,'Service Parts'!A:A,0),1),"-") -> 17935-0001-P | D10: =IFERROR(INDEX(Obsolete!C:C,MATCH(TRIM(C10),Obsolete!B:B,0),1),"-") -> - | F10: =IFERROR(INDEX('Price List'!A:A,IF(U11="-",V11,U11),1),"NOT-FOUND") -> 17935-0001-P | G10: =IFERROR(INDEX('Price List'!B:B,IF(U11="-",V11,U11),1),"-") -> KIT IMPELLER POS | H10: =IFERROR(INDEX('Price List'!D:D,IF(U11="-",V11,U11),1),"-") -> 0.59 | I10: =IFERROR(INDEX('Price List'!E:E,IF(U11="-",V11,U11),1),"-") -> 46.7 | K10: =HYPERLINK(L10,"ABOUT JABSCO") -> ABOUT JABSCO | L10: https://www.lancingmarine.com/blog/jabsco-full-spare-patrs-lists.aspx | U10: =IFERROR(MATCH(C9,'Price List'!A:A,0),"-") -> - | V10: =IFERROR(MATCH(D9,'Price List'!A:A,0),"-") -> -
B11: WATER SEAL | C11: =IFERROR(INDEX('Service Parts'!I:I,MATCH(B3,'Service Parts'!A:A,0),1),"-") -> 21849 | D11: =IFERROR(INDEX(Obsolete!C:C,MATCH(TRIM(C11),Obsolete!B:B,0),1),"-") -> - | F11: =IFERROR(INDEX('Price List'!A:A,IF(U12="-",V12,U12),1),"NOT-FOUND") -> 21849 | G11: =IFERROR(INDEX('Price List'!B:B,IF(U12="-",V12,U12),1),"-") -> KIT MECHANICAL SEAL | H11: =IFERROR(INDEX('Price List'!D:D,IF(U12="-",V12,U12),1),"-") -> 0.05 | I11: =IFERROR(INDEX('Price List'!E:E,IF(U12="-",V12,U12),1),"-") -> 76.3 | K11: =HYPERLINK(L11,"FULL JABSCO PUMP LISTS") -> FULL JABSCO PUMP LISTS | L11: https://www.lancingmarine.com/price-book/page-84/ | U11: =IFERROR(MATCH(C10,'Price List'!A:A,0),"-") -> 200 | V11: =IFERROR(MATCH(D10,'Price List'!A:A,0),"-") -> -
B12: END COVER SCREWS | C12: =IFERROR(INDEX('Service Parts'!J:J,MATCH(B3,'Service Parts'!A:A,0),1),"-") -> X3001-176F | D12: =IFERROR(INDEX(Obsolete!C:C,MATCH(TRIM(C12),Obsolete!B:B,0),1),"-") -> X3003-176F-P | F12: =IFERROR(INDEX('Price List'!A:A,IF(U13="-",V13,U13),1),"NOT-FOUND") -> X3003-176F-P | G12: =IFERROR(INDEX('Price List'!B:B,IF(U13="-",V13,U13),1),"-") -> SCREW M6 X 10 | H12: =IFERROR(INDEX('Price List'!D:D,IF(U13="-",V13,U13),1),"-") -> 0.001 | I12: =IFERROR(INDEX('Price List'!E:E,IF(U13="-",V13,U13),1),"-") -> 10.3 | K12: =HYPERLINK(L12,"JABSCO PUMP SERVICE REPAIR KITS") -> JABSCO PUMP SERVICE REPAIR KITS | L12: https://www.lancingmarine.com/price-book/page-85/ | U12: =IFERROR(MATCH(C11,'Price List'!A:A,0),"-") -> 268 | V12: =IFERROR(MATCH(D11,'Price List'!A:A,0),"-") -> -
B13: CAM | C13: =IFERROR(INDEX('Service Parts'!K:K,MATCH(B3,'Service Parts'!A:A,0),1),"-") -> 834 | D13: =IFERROR(INDEX(Obsolete!C:C,MATCH(TRIM(C13),Obsolete!B:B,0),1),"-") -> 834-0001 | F13: =IFERROR(INDEX('Price List'!A:A,IF(U14="-",V14,U14),1),"NOT-FOUND") -> 834-0001 | G13: =IFERROR(INDEX('Price List'!B:B,IF(U14="-",V14,U14),1),"-") -> KIT CAM | H13: =IFERROR(INDEX('Price List'!D:D,IF(U14="-",V14,U14),1),"-") -> 0.395 | I13: =IFERROR(INDEX('Price List'!E:E,IF(U14="-",V14,U14),1),"-") -> 36.7 | K13: =HYPERLINK(L13,"JABSCO COMPONENTS") -> JABSCO COMPONENTS | L13: https://www.lancingmarine.com/price-book/page-86/ | U13: =IFERROR(MATCH(C12,'Price List'!A:A,0),"-") -> - | V13: =IFERROR(MATCH(D12,'Price List'!A:A,0),"-") -> 112
B14: CAM SCREW | C14: =IFERROR(INDEX('Service Parts'!L:L,MATCH(B3,'Service Parts'!A:A,0),1),"-") -> SP1005-04 | D14: =IFERROR(INDEX(Obsolete!C:C,MATCH(TRIM(C14),Obsolete!B:B,0),1),"-") -> - | F14: =IFERROR(INDEX('Price List'!A:A,IF(U15="-",V15,U15),1),"NOT-FOUND") -> NOT-FOUND | G14: =IFERROR(INDEX('Price List'!B:B,IF(U15="-",V15,U15),1),"-") -> - | H14: =IFERROR(INDEX('Price List'!D:D,IF(U15="-",V15,U15),1),"-") -> - | I14: =IFERROR(INDEX('Price List'!E:E,IF(U15="-",V15,U15),1),"-") -> - | U14: =IFERROR(MATCH(C13,'Price List'!A:A,0),"-") -> - | V14: =IFERROR(MATCH(D13,'Price List'!A:A,0),"-") -> 527
B15: PUMP END OIL SEAL | C15: =IFERROR(INDEX('Service Parts'!M:M,MATCH(B3,'Service Parts'!A:A,0),1),"-") -> SP2700-50 | D15: =IFERROR(INDEX(Obsolete!C:C,MATCH(TRIM(C15),Obsolete!B:B,0),1),"-") -> - | F15: =IFERROR(INDEX('Price List'!A:A,IF(U16="-",V16,U16),1),"NOT-FOUND") -> NOT-FOUND | G15: =IFERROR(INDEX('Price List'!B:B,IF(U16="-",V16,U16),1),"-") -> - | H15: =IFERROR(INDEX('Price List'!D:D,IF(U16="-",V16,U16),1),"-") -> - | I15: =IFERROR(INDEX('Price List'!E:E,IF(U16="-",V16,U16),1),"-") -> - | U15: =IFERROR(MATCH(C14,'Price List'!A:A,0),"-") -> - | V15: =IFERROR(MATCH(D14,'Price List'!A:A,0),"-") -> -
B16: PUMP END BEARING | C16: =IFERROR(INDEX('Service Parts'!N:N,MATCH(B3,'Service Parts'!A:A,0),1),"-") -> SP2600-04 | D16: =IFERROR(INDEX(Obsolete!C:C,MATCH(TRIM(C16),Obsolete!B:B,0),1),"-") -> - | F16: =IFERROR(INDEX('Price List'!A:A,IF(U17="-",V17,U17),1),"NOT-FOUND") -> NOT-FOUND | G16: =IFERROR(INDEX('Price List'!B:B,IF(U17="-",V17,U17),1),"-") -> - | H16: =IFERROR(INDEX('Price List'!D:D,IF(U17="-",V17,U17),1),"-") -> - | I16: =IFERROR(INDEX('Price List'!E:E,IF(U17="-",V17,U17),1),"-") -> - | U16: =IFERROR(MATCH(C15,'Price List'!A:A,0),"-") -> - | V16: =IFERROR(MATCH(D15,'Price List'!A:A,0),"-") -> -
B17: DRIVE END OIL SEAL | C17: =IFERROR(INDEX('Service Parts'!O:O,MATCH(B3,'Service Parts'!A:A,0),1),"-") -> SP2701-1013 | D17: =IFERROR(INDEX(Obsolete!C:C,MATCH(TRIM(C17),Obsolete!B:B,0),1),"-") -> - | F17: =IFERROR(INDEX('Price List'!A:A,IF(U18="-",V18,U18),1),"NOT-FOUND") -> NOT-FOUND | G17: =IFERROR(INDEX('Price List'!B:B,IF(U18="-",V18,U18),1),"-") -> - | H17: =IFERROR(INDEX('Price List'!D:D,IF(U18="-",V18,U18),1),"-") -> - | I17: =IFERROR(INDEX('Price List'!E:E,IF(U18="-",V18,U18),1),"-") -> - | U17: =IFERROR(MATCH(C16,'Price List'!A:A,0),"-") -> - | V17: =IFERROR(MATCH(D16,'Price List'!A:A,0),"-") -> -
B18: DRIVE END BEARING | C18: =IFERROR(INDEX('Service Parts'!P:P,MATCH(B3,'Service Parts'!A:A,0),1),"-") -> 0 | D18: =IFERROR(INDEX(Obsolete!C:C,MATCH(TRIM(C18),Obsolete!B:B,0),1),"-") -> - | F18: =IFERROR(INDEX('Price List'!A:A,IF(U19="-",V19,U19),1),"NOT-FOUND") -> NOT-FOUND | G18: =IFERROR(INDEX('Price List'!B:B,IF(U19="-",V19,U19),1),"-") -> - | H18: =IFERROR(INDEX('Price List'!D:D,IF(U19="-",V19,U19),1),"-") -> - | I18: =IFERROR(INDEX('Price List'!E:E,IF(U19="-",V19,U19),1),"-") -> - | U18: =IFERROR(MATCH(C17,'Price List'!A:A,0),"-") -> - | V18: =IFERROR(MATCH(D17,'Price List'!A:A,0),"-") -> -
B19: SHAFT | C19: =IFERROR(INDEX('Service Parts'!Q:Q,MATCH(B3,'Service Parts'!A:A,0),1),"-") -> 52207-0000 | D19: =IFERROR(INDEX(Obsolete!C:C,MATCH(TRIM(C19),Obsolete!B:B,0),1),"-") -> - | F19: =IFERROR(INDEX('Price List'!A:A,IF(U20="-",V20,U20),1),"NOT-FOUND") -> 52207-0000 | G19: =IFERROR(INDEX('Price List'!B:B,IF(U20="-",V20,U20),1),"-") -> SHAFT 200 | H19: =IFERROR(INDEX('Price List'!D:D,IF(U20="-",V20,U20),1),"-") -> 0.593 | I19: =IFERROR(INDEX('Price List'!E:E,IF(U20="-",V20,U20),1),"-") -> 303.6 | U19: =IFERROR(MATCH(C18,'Price List'!A:A,0),"-") -> - | V19: =IFERROR(MATCH(D18,'Price List'!A:A,0),"-") -> -
B20: WEARPLATE | C20: =IFERROR(INDEX('Service Parts'!R:R,MATCH(B3,'Service Parts'!A:A,0),1),"-") -> 2574 | D20: =IFERROR(INDEX(Obsolete!C:C,MATCH(TRIM(C20),Obsolete!B:B,0),1),"-") -> 2574-0000 | F20: =IFERROR(INDEX('Price List'!A:A,IF(U21="-",V21,U21),1),"NOT-FOUND") -> 2574-0000 | G20: =IFERROR(INDEX('Price List'!B:B,IF(U21="-",V21,U21),1),"-") -> KIT WEARPLATE | H20: =IFERROR(INDEX('Price List'!D:D,IF(U21="-",V21,U21),1),"-") -> 0.29 | I20: =IFERROR(INDEX('Price List'!E:E,IF(U21="-",V21,U21),1),"-") -> 23.5 | U20: =IFERROR(MATCH(C19,'Price List'!A:A,0),"-") -> 471 | V20: =IFERROR(MATCH(D19,'Price List'!A:A,0),"-") -> -
B21: END COVER | C21: =IFERROR(INDEX('Service Parts'!S:S,MATCH(B3,'Service Parts'!A:A,0),1),"-") -> 9336 | D21: =IFERROR(INDEX(Obsolete!C:C,MATCH(TRIM(C21),Obsolete!B:B,0),1),"-") -> 10773-0000 | F21: =IFERROR(INDEX('Price List'!A:A,IF(U22="-",V22,U22),1),"NOT-FOUND") -> 10773-0000 | G21: =IFERROR(INDEX('Price List'!B:B,IF(U22="-",V22,U22),1),"-") -> END COVER BRASS 200/270 | H21: =IFERROR(INDEX('Price List'!D:D,IF(U22="-",V22,U22),1),"-") -> 0.001 | I21: =IFERROR(INDEX('Price List'!E:E,IF(U22="-",V22,U22),1),"-") -> 127.6 | U21: =IFERROR(MATCH(C20,'Price List'!A:A,0),"-") -> - | V21: =IFERROR(MATCH(D20,'Price List'!A:A,0),"-") -> 318
B22: BODY | C22: =IFERROR(INDEX('Service Parts'!T:T,MATCH(B3,'Service Parts'!A:A,0),1),"-") -> 50204-2100 | D22: =IFERROR(INDEX(Obsolete!C:C,MATCH(TRIM(C22),Obsolete!B:B,0),1),"-") -> - | F22: =IFERROR(INDEX('Price List'!A:A,IF(U23="-",V23,U23),1),"NOT-FOUND") -> NOT-FOUND | G22: =IFERROR(INDEX('Price List'!B:B,IF(U23="-",V23,U23),1),"-") -> - | H22: =IFERROR(INDEX('Price List'!D:D,IF(U23="-",V23,U23),1),"-") -> - | I22: =IFERROR(INDEX('Price List'!E:E,IF(U23="-",V23,U23),1),"-") -> - | U22: =IFERROR(MATCH(C21,'Price List'!A:A,0),"-") -> - | V22: =IFERROR(MATCH(D21,'Price List'!A:A,0),"-") -> 140
B23: ALTERNATE PUMP NUMBER | C23: =IFERROR(INDEX('Service Parts'!E:E,MATCH(B3,'Service Parts'!A:A,0),1),"-") -> 0 | D23: =IFERROR(INDEX(Obsolete!C:C,MATCH(TRIM(C23),Obsolete!B:B,0),1),"-") -> - | F23: =IFERROR(INDEX('Price List'!A:A,IF(U8="-",V8,U8),1),"NOT-FOUND") -> NOT-FOUND | G23: =IFERROR(INDEX('Price List'!B:B,IF(U8="-",V8,U8),1),"-") -> - | H23: =IFERROR(INDEX('Price List'!D:D,IF(U8="-",V8,U8),1),"-") -> - | I23: =IFERROR(INDEX('Price List'!E:E,IF(U8="-",V8,U8),1),"-") -> - | U23: =IFERROR(MATCH(C22,'Price List'!A:A,0),"-") -> - | V23: =IFERROR(MATCH(D22,'Price List'!A:A,0),"-") -> -
F24: LANCING MARINE | I24: CALL LANCING MARNE TO ORDER 01273-410025
F25: DATA@LANCINGMARINE.COM | I25: +44-1273-41005

Sheet Price List
A1: LANCING MARINE JABSCO PUMPS AND PARTS PRICES | G1: V.A.T. extra on U.K. sales, except Channel Isles.
A2: PART-NUM-VALUE | B2: Description | C2: Pack Qty | D2: Weight | E2: PRICE | G2: Packing & Carriage is extra, optimum time route & cost tailored to the clients needs.
A3: CW403 | B3: PUMP KIT 3/4 WITH 127MM PULLEY | C3: 1 | D3: 2.44 | E3: 360.8
A4: CW404 | B4: PUMP KIT 3/4 WITH 159MM PULLEY | C4: 1 | D4: 2.88 | E4: 374
A5: CW532 | B5: 12V MACERATOR WITH AMP CONNECTOR | C5: 1 | D5: 2.5 | E5: 316.8
A6: K1-200 | B6: KIT PORT 38MM (1.5 ) BSP | C6: 1 | D6: 0.84 | E6: 174.6
A7: K2-200 | B7: KIT PORT 50MM (2 ) BSP | C7: 1 | D7: 0.95 | E7: 198
A8: SK211 | B8: KIT SERVICE 020 SP NEO | C8: 1 | D8: 0.067 | E8: 48.4
A9: SK220 | B9: KIT SERVICE 080 SP NEO | C9: 1 | D9: 0.219 | E9: 82.1
A10: SK221 | B10: KIT SERVICE 010 SP NEO | C10: 1 | D10: 0.048 | E10: 61.6
A11: SK224 | B11: KIT SERVICE (WATER PUPPY) | C11: 1 | D11: 0.05 | E11: 41.1
A12: SK224-01 | B12: KIT SERVICE (MAXI PUPPY) | C12: 1 | D12: 0.051 | E12: 45.5
A13: SK225-01 | B13: KIT SERVICE 040 SP NEO | C13: 1 | D13: 0.127 | E13: 71.9
A14: SK228 | B14: KIT SERVICE 020 SP NEO | C14: 1 | D14: 0.071 | E14: 55.7
A15: SK229 | B15: KIT SERVICE 080 SP NEO | C15: 1 | D15: 0.246 | E15: 136.4
A16: SK229-37 | B16: KIT SERVICE 080 SP NIO | C16: 1 | D16: 0.246 | E16: 143.7
A17: SK23 | B17: KIT SERVICE 010 SP NEO | C17: 1 | D17: 0.045 | E17: 57.2
A18: SK23-0101 | B18: KIT SERVICE 010 SP NEO | C18: 1 | D18: 0.042 | E18: 48.4
A19: SK230 | B19: KIT SERVICE 200 SP NEO | C19: 1 | D19: 0.487 | E19: 176
A20: SK230-37 | B20: KIT SERVICE 200 SP NIO | C20: 1 | D20: 0.438 | E20: 189.2
A21: SK234 | B21: KIT SERVICE 040 SP NEO | C21: 1 | D21: 0.14 | E21: 79.2
A22: SK236 | B22: KIT SERVICE 080 SP NEO | C22: 1 | D22: 0.208 | E22: 80.7
A23: SK236-37 | B23: KIT SERVICE 080 SP NIO | C23: 1 | D23: 0.194 | E23: 80.7
A24: SK238 | B24: KIT SERVICE 080 SP NEO | C24: 1 | D24: 0.241 | E24: 146.7
A25: SK239 | B25: KIT SERVICE 040 SP NEO | C25: 1 | D25: 0.161 | E25: 130.5
A26: SK254 | B26: KIT SERVICE 270 MP NE0 | C26: 1 | D26: 1.04 | E26: 262.6
A27: SK268 | B27: KIT SERVICE 040 SP NEO | C27: 1 | D27: 0.272 | E27: 151.1
A28: SK268-01 | B28: KIT SERVICE 040 SP NEO | C28: 1 | D28: 0.272 | E28: 156.9
A29: SK269 | B29: KIT SERVICE 080 SP NEO | C29: 1 | D29: 0.248 | E29: 255.2
A30: SK271 | B30: KIT SERVICE 040 SP NEO | C30: 1 | D30: 0.298 | E30: 121.8
A31: SK33 | B31: KIT SERVICE 040 SP NEO | C31: 1 | D31: 0.116 | E31: 70.4
A32: SK351 | B32: KIT SERVICE 040 SP NEO | C32: 1 | D32: 0.145 | E32: 133.5
A33: SK352 | B33: KIT SERVICE 080 SP NEO | C33: 1 | D33: 0.22 | E33: 93.9
A34: SK352-01 | B34: KIT SERVICE 080 SP NIO | C34: 1 | D34: 0.22 | E34: 92.4
A35: SK368-0003 | B35: KIT SERVICE 020 TP NIO | C35: 1 | D35: 0.14 | E35: 95.4
A36: SK371-0000 | B36: KIT SERVICE | C36: 1 | D36: 0.674 | E36: 164.3
A37: SK374-0003 | B37: KIT SERVICE 005 PUPPIES | C37: 1 | D37: 0.023 | E37: 45.5
A38: SK374-0021 | B38: KIT SERVICE | C38: 1 | D38: 0.1 | E38: 86.6
A39: SK384-0001 | B39: KIT SERVICE 040 SP NEO | C39: 1 | D39: 0.116 | E39: 70.4
A40: SK384-0101 | B40: KIT SERVICE 040 SP NEO | C40: 1 | D40: 0.116 | E40: 68.9
A41: SK384-0201 | B41: KIT SERVICE 040 NEO MECH | C41: 1 | D41: 0.2 | E41: 68.9
A42: SK385-0001 | B42: KIT SERVICE 080 SP NEO | C42: 1 | D42: 0.212 | E42: 79.2
A43: SK385-0101 | B43: KIT SERVICE 080 SP NEO | C43: 1 | D43: 0.23 | E43: 73.4
A44: SK385-0501 | B44: KIT SERVICE 080 SP NEO | C44: 1 | D44: 0.2 | E44: 79.2
A45: SK385-0601 | B45: KIT SERVICE 080 SP NEO | C45: 1 | D45: 0.21 | E45: 73.4
A46: SK385-0701 | B46: KIT - SERVICE 080 SP NEO | C46: 1 | D46: 0.21 | E46: 95.4
A47: SK386-0001 | B47: KIT SERVICE 120 SP NEO | C47: 1 | D47: 0.34 | E47: 139.3
A48: SK387-0001 | B48: KIT SERVICE 020 SP NEO | C48: 1 | D48: 0.06 | E48: 63.1
A49: SK400-0023 | B49: KIT SERVICE 010 PUPPIES | C49: 1 | D49: 0.076 | E49: 57.2
A50: SK401-0001 | B50: KIT SERVICE 020 SP NEO | C50: 1 | D50: 0.065 | E50: 60.1
A51: SK402-0001 | B51: KIT SERVICE 020 MP NEO | C51: 1 | D51: 0.85 | E51: 130.5
A52: SK404-0001 | B52: KIT SERVICE 010 SP NEO | C52: 1 | D52: 0.036 | E52: 45.5
A53: SK405-0001 | B53: KIT SERVICE 020 SP NEO | C53: 1 | D53: 0.063 | E53: 58.7
A54: SK405-0101 | B54: KIT SERVICE 020 SP NEO | C54: 1 | D54: 0.063 | E54: 60.1
A55: SK406-0001 | B55: KIT SERVICE 080 NEO | C55: 1 | D55: 0.246 | E55: 83.6
A56: SK406-0003 | B56: KIT SERVICE 080 SP NIO | C56: 1 | D56: 0.246 | E56: 83.6
A57: SK407-0003 | B57: KIT SERVICE 200 SP NIO | C57: 1 | D57: 0.487 | E57: 192.2
A58: SK407-0011 | B58: KIT SERVICE 200 MP NEO | C58: 1 | D58: 0.487 | E58: 183.3
A59: SK408-0011 | B59: KIT SERVICE 270 MP NEO | C59: 1 | D59: 0.69 | E59: 275.8
A60: SK408-0013 | B60: KIT SERVICE 270 MP NIO | C60: 1 | D60: 0.575 | E60: 289
A61: SK410 | B61: KIT SERVICE 470 MP NEO | C61: 1 | D61: 0.985 | E61: 343.2
A62: SK415-0113 | B62: KIT SERVICE (UTILITY 3000) | C62: 1 | D62: 0.1 | E62: 60.1
A63: SK417-0001 | B63: KIT SERVICE | C63: 1 | D63: 0.22 | E63: 143.7
A64: SK501-0000 | B64: KIT END COVER (51520) | C64: 1 | D64: 0.1 | E64: 48.4
A65: SK503-0000 | B65: KIT SERVICE (020 MECH) | C65: 1 | D65: 0.665 | E65: 67.5
A66: SK504-0000 | B66: KIT SEAL/GASKET (020 MECH) | C66: 1 | D66: 0.001 | E66: 55.7
A67: SK505-0000 | B67: KIT END COVER (51510) | C67: 1 | D67: 0.06 | E67: 42.5
A68: SP1003-0111 | B68: SCREW M5x8 | C68: 1 | D68: 0.002 | E68: 4.4
A69: SP1004-09-10 | B69: Kit, Screw MOQ 10 | C69: 10 | D69: 0.033 | E69: 5.9
A70: SP1602-13 | B70: (*line side) WASHER | C70: 1 | D70: 0.001 | E70: 4.4
A71: SP1700-249 | B71: RETAINING RING EXT DIA 15.1 | C71: 1 | D71: 0.001 | E71: 4.4
A72: SP1700-284 | B72: RETAINING RING INT DIA 40 | C72: 1 | D72: 0.003 | E72: 4.4
A73: SP1700-62-10 | B73: Kit, Retaining Ring MOQ 10 | C73: 10 | D73: 0.033 | E73: 8.8
A74: SP1700-98 | B74: RETAINING RING EXT DIA 25 | C74: 1 | D74: 0.002 | E74: 5.9
A75: SP1701-185 | B75: RETAINING RING INT DIA 47 | C75: 1 | D75: 0.005 | E75: 7.3
A76: SP1701-244 | B76: (*line side) RETAINING RING INT DIA 61.9 | C76: 1 | D76: 0.012 | E76: 5.9
A77: SP1701-438 | B77: RETAINING RING INT DIA 47 | C77: 1 | D77: 0.002 | E77: 4.4
A78: SP1701-4437 | B78: RETAINING RING | C78: 1 | D78: 0.001 | E78: 4.4
A79: SP1701-4438 | B79: RETAINING RING INT DIA 28 | C79: 1 | D79: 0.002 | E79: 4.4
A80: SP1701-4440 | B80: RETAINING RING EXT DIA 12 | C80: 1 | D80: 0.001 | E80: 4.4
A81: SP2000-21B | B81: KIT, O-RING | C81: 1 | D81: 0.03 | E81: 7.3
A82: SP2300-0061RA | B82: ROTOR ARM ASSY 2A | C82: 1 | D82: 3.092 | E82: 180.4
A83: SP2300-0063FCUS | B83: FIELD COIL 12V | C83: 1 | D83: 1.045 | E83: 164.3
A84: SP2300-0063RA | B84: ROTOR ARM ASSY 1B | C84: 1 | D84: 2.8 | E84: 180.4
A85: SP2300-0064FCUS | B85: FIELD COIL 24V | C85: 1 | D85: 1.045 | E85: 164.3
A86: SP2600-01 | B86: BEARING (6203/QE6) | C86: 1 | D86: 0.065 | E86: 7.3
A87: SP2600-12 | B87: BEARING (6203-2RS1/C3VM045) | C87: 1 | D87: 0.064 | E87: 10.3
A88: SP2600-38 | B88: BEARING (RMS 5) | C88: 1 | D88: 0.119 | E88: 57.2
A89: SP2601-0451B | B89: KIT, BEARING | C89: 1 | D89: 0.047 | E89: 11.7
A90: SP2601-0457 | B90: BEARING (6001-2RS1/VM045) | C90: 1 | D90: 0.021 | E90: 10.3
A91: SP2601-0458 | B91: BEARING (6206-2RS1) | C91: 1 | D91: 0.198 | E91: 19.1
A92: SP2601-0468 | B92: BEARING (6204-2RS1/VM045) | C92: 1 | D92: 0.109 | E92: 13.2
A93: SP2601-39B | B93: KIT, BEARING | C93: 1 | D93: 0.05 | E93: 10.3
A94: SP2601-41 | B94: BEARING (6206-RS1) | C94: 1 | D94: 0.203 | E94: 19.1
A95: SP2700-1027B | B95: KIT, SEAL LIP | C95: 1 | D95: 0.008 | E95: 8.8
A96: SP2701-01B | B96: KIT, SEAL LIP | C96: 1 | D96: 0.07 | E96: 17.6
A97: SP2701-09 | B97: SEAL LIP (3/8, 0.875, 1/4) | C97: 1 | D97: 0.004 | E97: 11.7
A98: SP2701-0903 | B98: SEAL-LIP GEAR COVER B | C98: 1 | D98: 0.01 | E98: 4.3
A99: SP2701-1006B | B99: KIT, SEAL LIP | C99: 1 | D99: 0.05 | E99: 7.3
A100: SP2701-1013B | B100: KIT, SEAL LIP | C100: 1 | D100: 0.01 | E100: 7.3
A101: SP2701-1015B | B101: KIT, SEAL LIP | C101: 1 | D101: 0.01 | E101: 8.8
A102: SP2701-15 | B102: SEAL | C102: 1 | D102: 0.007 | E102: 5.9
A103: SP2701-21B | B103: KIT, SEAL LIP | C103: 1 | D103: 0.07 | E103: 8.8
A104: SP2701-52B | B104: KIT, SEAL LIP | C104: 1 | D104: 0.1 | E104: 7.3
A105: SP3100-10 | B105: PIN | C105: 1 | D105: 0.002 | E105: 4.4
A106: SP6080-06B | B106: SEAL | C106: 1 | D106: 0.031 | E106: 17.6
A107: SP6080-08B | B107: SEAL | C107: 1 | D107: 0.03 | E107: 58.7
A108: SP8019-01 | B108: SCREW 8x32x1/4 | C108: 1 | D108: 0.005 | E108: 5.9
A109: V-SP2700-42 | B109: SPARE, SEAL | C109: 1 | D109: 0.01 | E109: 26.4
A110: X3001-180F | B110: SCREW-ST.ST.M6 X 16 | C110: 1 | D110: 0.005 | E110: 4.3
A111: X3002-147F | B111: SCREW M5x8 SLOT PAN HD SS | C111: 1 | D111: 0.002 | E111: 4.4
A112: X3003-176F-P | B112: SCREW M6 X 10 | C112: 1 | D112: 0.001 | E112: 10.3
A113: X3004-095G | B113: SCREW M4-8 CH HD BRASS | C113: 1 | D113: 0.01 | E113: 4.4
A114: X3004-174F | B114: SCREW CHEESE HD M6 X 8 LONG | C114: 1 | D114: 0.001 | E114: 4.4
A115: X4000-567A | B115: (*line side)KEY 8x7x40 ST | C115: 1 | D115: 0.017 | E115: 5.9
A116: X4020-105A | B116: (*line side)O-RING 1.6 X 5.1 (NIT) | C116: 1 | D116: 0.001 | E116: 4.4
A117: X4020-106A | B117: (*line side) O-RING 1.6 X 6.1 NIT | C117: 1 | D117: 0.001 | E117: 4.4
A118: X4020-210A | B118: O-RING 2.4 X 10.6 (NIT) | C118: 1 | D118: 0.001 | E118: 4.4
A119: X4020-215A | B119: (*line side) O-RING 2.4 X 15.6 (NIT) | C119: 1 | D119: 0.004 | E119: 4.4
A120: X4020-257A | B120: (*line side)O-RING 2.4 X 57.6 (NIT) | C120: 1 | D120: 0.001 | E120: 4.3
A121: X4020-269A-50 | B121: Kit, O ring MOQ 50 | C121: 50 | D121: 0.002 | E121: 4.4
A122: X4020-269B | B122: O-RING 2.4 X 69.6 (VIT) | C122: 1 | D122: 0.002 | E122: 12.9
A123: X4020-354A | B123: O-RING 3 X 54.5 (NIT) | C123: 1 | D123: 0.002 | E123: 4.3
A124: X4020-394A | B124: O-RING 3 X 94.5 (NIT) | C124: 1 | D124: 0.003 | E124: 7.2
A125: X5251-052 | B125: O-RING 2.50 X 89 NIT | C125: 1 | D125: 0.002 | E125: 4.4
A126: Y5026-08 | B126: (*line side)CIRCLIP | C126: 1 | D126: 0.008 | E126: 5.9
A127: 10374 | B127: SHAFT 040 | C127: 1 | D127: 0.208 | E127: 227.4
A128: 1039-0000 | B128: KIT LIP SEAL | C128: 1 | D128: 0.024 | E128: 41.1
A129: 10396-0010 | B129: KIT WEARPLATE | C129: 1 | D129: 0.19 | E129: 379.9
A130: 1040-0000 | B130: SEAL KIT | C130: 1 | D130: 0.005 | E130: 16.1
A131: 1040-0001 | B131: KIT SEAL VITON | C131: 1 | D131: 0.001 | E131: 20.5
A132: 1041-0000 | B132: KIT SEAL | C132: 1 | D132: 0.005 | E132: 66
A133: 10550-200 | B133: EU PMP 3/4 BSP PED NEO 040 | C133: 1 | D133: 2.33 | E133: 451.8
A134: 10550-205 | B134: EU PMP 3/4 BSP PED NEO 040 | C134: 1 | D134: 2.33 | E134: 451.8
A135: 10590-0111 | B135: PUMP BRZ FLG 270 FLG | C135: 1 | D135: 5.56 | E135: 1478.5
A136: 10590-0451 | B136: PUMP BRZ FLG 270 FLG | C136: 1 | D136: 8.45 | E136: 1353.8
A137: 10594-0030 | B137: HOUSING BRG | C137: 1 | D137: 1.844 | E137: 316.8
A138: 10770-0021 | B138: PUMP BRZ FLG 200 FLG HP | C138: 1 | D138: 7.17 | E138: 831.7
A139: 10770-57 | B139: PUMP BRZ FLG 200 FLG | C139: 1 | D139: 7.17 | E139: 642.5
A140: 10773-0000 | B140: END COVER BRASS 200/270 | C140: 1 | D140: 0.001 | E140: 127.6
A141: 10818 | B141: CAM BRASS 020 | C141: 1 | D141: 0.024 | E141: 38.1
A142: 10880-2561 | B142: PUMP BRZ FLG 200 BSP | C142: 1 | D142: 7 | E142: 1782.5
A143: 10950-2401 | B143: PUMP BRZ FLG 040 BSP | C143: 1 | D143: 3.04 | E143: 407.8
A144: 10970 | B144: PUMP BRZ FLG 040 NPTF | C144: 1 | D144: 3.26 | E144: 638.8
A145: 10970-21 | B145: PUMP BRZ FLG 040 BSP | C145: 1 | D145: 3.54 | E145: 739.3
A146: 11100-0541 | B146: PUMP BRZ FLG 270 FLG | C146: 1 | D146: 8.41 | E146: 1126.5
A147: 11100-0601 | B147: PUMP BRZ FLG 270 FLG | C147: 1 | D147: 9 | E147: 1126.5
A148: 11258 | B148: SHAFT ASSY | C148: 1 | D148: 0.86 | E148: 353.5
A149: 11258-01 | B149: SHAFT ASSY | C149: 1 | D149: 0.955 | E149: 432.7
A150: 1126-0000 | B150: KIT GASKET | C150: 1 | D150: 0.001 | E150: 13.2
A151: 11790-0101 | B151: PUMP BRZ FLG | C151: 1 | D151: 7.48 | E151: 1071.4
A152: 11790-0201 | B152: PUMP BRZ FLG 200 FLG HP | C152: 1 | D152: 7.48 | E152: 1067.8
A153: 11796-0010 | B153: SHAFT ASSY | C153: 1 | D153: 0.88 | E153: 352
A154: 11830-0000 | B154: KIT ENDCOVER BRASS | C154: 1 | D154: 0.187 | E154: 19.1
A155: 11831-0000 | B155: KIT ENDCOVER | C155: 1 | D155: 0.35 | E155: 24.9
A156: 11835-0000 | B156: KIT ENDCOVER (17820-SERIES) | C156: 1 | D156: 0.04 | E156: 14.7
A157: 11877-0000 | B157: KIT SHAFT | C157: 1 | D157: 0.652 | E157: 256.7
A158: 1189-0000 | B158: KIT GASKET | C158: 1 | D158: 0.002 | E158: 7.3
A159: 11979-0001B | B159: IMPELLER 080 SP NE | C159: 1 | D159: 0.144 | E159: 63.1
A160: 12062-0000 | B160: END COVER | C160: 1 | D160: 0.35 | E160: 58.7
A161: 12071-0000 | B161: KIT ENDCOVER | C161: 1 | D161: 0.21 | E161: 30.8
A162: 1210-0001-P | B162: KIT IMPELLER POS | C162: 1 | D162: 0.13 | E162: 33.3
A163: 1210-0001B | B163: IMPELLER 040 SP NE SPL | C163: 1 | D163: 0.087 | E163: 36.7
A164: 1210-0003-P | B164: KIT IMPELLER POS | C164: 1 | D164: 0.6 | E164: 36.7
A165: 1210-0003B | B165: IMPELLER 040 SP NIO SPL | C165: 1 | D165: 0.078 | E165: 36.7
A166: 12104-0001B | B166: IMPELLER 005 SP NE PIN | C166: 1 | D166: 0.009 | E166: 63.1
A167: 12316-1002 | B167: WEARPLATE,BODY (MACERATOR) | C167: 1 | D167: 0.005 | E167: 14.7
A168: 12608-0000 | B168: GASKET (12600) | C168: 1 | D168: 0.001 | E168: 17.6
A169: 13554-0001-P | B169: KIT IMPELLER POS | C169: 1 | D169: 0.16 | E169: 63.1
A170: 14052-0000 | B170: KIT SEAL | C170: 1 | D170: 0.105 | E170: 133.5
A171: 1414-0001-P | B171: KIT IMPELLER POS | C171: 1 | D171: 0.04 | E171: 29.3
A172: 1414-0001B | B172: IMPELLER 005 SP NE 1FL | C172: 1 | D172: 0.011 | E172: 29.3
A173: 1414-0003-P | B173: KIT IMPELLER POS | C173: 1 | D173: 0.1 | E173: 36.7
A174: 1414-0003B | B174: IMPELLER 005 SP NIO 1FL | C174: 1 | D174: 0.011 | E174: 29.3
A175: 14609-0001B | B175: IMPELLER 005 HP NE 1FL | C175: 1 | D175: 0.011 | E175: 74.8
A176: 14750-0003-P | B176: KIT IMPELLER POS | C176: 1 | D176: 0.009 | E176: 41.1
A177: 15278-1000 | B177: KIT FLAPPER SUBASSY | C177: 1 | D177: 0.2 | E177: 286
A178: 15294-1020 | B178: 15780 VORTEX WEARING RING | C178: 1 | D178: 1 | E178: 438.6
A179: 15296-1000 | B179: KIT PLATE | C179: 1 | D179: 1.33 | E179: 680.6
A180: 15297-1010 | B180: KIT CAM RING | C180: 1 | D180: 1.57 | E180: 542.7
A181: 15298-1020 | B181: 15780 VORTEX BRONZE IMPELLER SERVICE KIT | C181: 1 | D181: 3.5 | E181: 1610.5
A182: 15780-0000 | B182: VORTEX COOLING PUMP | C182: 1 | D182: 54.2 | E182: 7623.3
A183: 17018-0001-P | B183: KIT IMPELLER POS | C183: 1 | D183: 0.29 | E183: 60
A184: 17018-0001B | B184: IMPELLER 120 SP NE SPL | C184: 1 | D184: 0.276 | E184: 66
A185: 17018-1101B | B185: KIT IMPELLER 120 (IT) | C185: 1 | D185: 0.26 | E185: 66
A186: 17215-0000 | B186: DRILL PUMP FOR OIL CHANGE | C186: 1 | D186: 0.24 | E186: 60
A187: 17240-0001B | B187: IMPELLER 370 MP NE SPL | C187: 1 | D187: 0.789 | E187: 262.6
A188: 17250-0003 | B188: DRILL PUMP | C188: 1 | D188: 0.162 | E188: 53.3
A189: 17255-0003-P | B189: KIT IMPELLER POS | C189: 1 | D189: 0.06 | E189: 44
A190: 17365-1000 | B190: KIT GASKET | C190: 1 | D190: 0.001 | E190: 13.2
A191: 1737-207 | B191: SHAFT 6490-222/223 | C191: 1 | D191: 0.1 | E191: 244.9
A192: 17370-0001-P | B192: KIT IMPELLER POS | C192: 1 | D192: 0.49 | E192: 180.4
A193: 17370-0001B | B193: IMPELLER 270 SP NEF 2FL | C193: 1 | D193: 0.442 | E193: 180.4
A194: 17372-1000 | B194: KIT WEARPLATE | C194: 1 | D194: 0.06 | E194: 88
A195: 17374-1000 | B195: KIT CAM LINER | C195: 1 | D195: 0.338 | E195: 201
A196: 17532-0020 | B196: KIT BEARING HOUSING | C196: 1 | D196: 2 | E196: 510.4
A197: 17536-0000 | B197: KIT - SHAFT | C197: 1 | D197: 1.05 | E197: 268.4
A198: 17810-1300 | B198: PUMP BRZ | C198: 1 | D198: 16.2 | E198: 1155.8
A199: 17860-2012 | B199: OIL CHG, FLAT TANK,12V | C199: 1 | D199: 6 | E199: 284.5
A200: 17935-0001-P | B200: KIT IMPELLER POS | C200: 1 | D200: 0.59 | E200: 46.7
... 1030 more rows

Sheet Service Parts
A1: JABSCO PUMP PARTS
A2: MODEL NUMBER | B2: PUMP SIZE | C2: PORT TYPE | D2: MOUNT TYPE | E2: ALTERNATE PUMP NUMBER | F2: KIT NUMBER | G2: GASKET/ O-RING | H2: IMPELLER-P | I2: WATER SEAL | J2: END COVER SCREWS | K2: CAM | L2: CAM SCREW | M2: PUMP END OIL SEAL | N2: PUMP END BEARING | O2: DRIVE END OIL SEAL | P2: DRIVE END BEARING | Q2: SHAFT | R2: WEARPLATE | S2: END COVER | T2: BODY
A3: 3570 | B3: 200 | C3: 1-3/4" Flanged | D3: Flange | F3: SK375-0101 | G3: 816 | H3: 17935-0001-P | I3: 21849 | J3: SP1005-04 | K3: Assy 7257 | L3: SP1005-04 | M3: SP2700-51 | O3: SP2700-49 | P3: SP2600-04 | Q3: 3577-0020 | R3: Assy 7257 | S3: 9336 | T3: 3574
A4: 4160 | B4: 80 | C4: 0 32 Hose | D4: Flange | H4: -P
A5: 4360 | B5: 200 | C5: 1-1/2" Flanged | D5: Flange | F5: SK230 | G5: 816 | H5: 836-0001-P | I5: 21849 | J5: SP1005-04 | K5: 834 | L5: SP1005-04 | M5: SP2704-01 | N5: SP2600-20 | O5: SP2704-02 | P5: SP2600-20 | Q5: 4367 | R5: 2574 | S5: 9336 | T5: 4364
A6: 4410 | B6: 40 | C6: 1/2" BSP | D6: Flange | F6: SK242 | G6: 4908 | H6: 4568-0001-P | I6: SP2701-01 | J6: SP6060-02 | K6: 6396 | L6: SP1003-01 | Q6: 4417 | R6: 5097 | S6: 4905 | T6: 4414
A7: 4760 | B7: 20 | C7: 3/4" BSP | D7: Flange | F7: SK228 | G7: 2995-0030 | H7: 673-0001-P | I7: SP2701-04 | J7: SP1002-01 | K7: 4454 | L7: SP1002-09 | Q7: 4766 | R7: 4466 | S7: 3992 | T7: 4764
A8: 4780 | B8: 10 | C8: 3/4" BSP | D8: Flange | F8: SK217 | G8: 1126 | H8: 4528-0001-P | I8: SP2701-09 | J8: SP1002-01 | K8: AL8-01 | L8: SP1002-01 | Q8: Assy 4787 | S8: AL6-200 | T8: 4784
A9: 4850 | B9: 80 | C9: 0 32 Hose | D9: Flange | E9: 9750 | G9: 3101 | H9: 920-08-P | I9: SP2700-06 | J9: SP1003-09 | K9: 5418 | L9: SP1003-09 | M9: SP2700-07 | N9: SP2601-19 | P9: SP2601-04 | Q9: 4857 | R9: 5419 | S9: 4855 | T9: 4854
A10: 4860 | B10: 80 | C10: 0 32 Hose | D10: Flange | E10: 9760 | G10: 3101 | H10: 920-08-P | I10: SP2700-06 | J10: SP1003-09 | K10: 5418 | L10: SP1003-09 | M10: SP2700-07 | N10: SP2600-07 | P10: SP2600-01 | Q10: 4867 | R10: 5419 | S10: 4855 | T10: 4854
A11: 5460 | B11: 20 | C11: 3/8" BSP | D11: Flange | G11: 5466 | H11: 673-0001-P | I11: SP2701-04 | J11: SP1011-01 | K11: 2907-0001 | L11: SP1002-01 | Q11: 5467 | S11: 5465 | T11: 5464
A12: 5640 | B12: 20 | F12: SK228 | G12: 2995-0030 | H12: 673-0001-P | I12: SP2701-04 | J12: SP1003-01 | K12: 4454 | L12: SP1002-01 | Q12: 5647 | R12: 4466 | T12: 5644
A13: 5870 | B13: 5 | C13: 1/2" BSP | D13: Flange | G13: 5878 | H13: 12104-0001-P | I13: SP2701-09 | J13: SP1002-09 | K13: 5868 | L13: SP1002-01 | M13: SP2701-09 | Q13: 5877 | R13: 5876 | S13: 5875 | T13: 5874
A14: 6330 | B14: 80 | C14: 0 32 Hose/ Flange | D14: Flange | F14: SK237 | G14: 890 | H14: 4325-0480-P | I14: SP2701-06 | J14: SP1003-11 | K14: 4329 | L14: SP1004-09 | M14: SP2701-06 | N14: SP2600-13 | O14: SP2701-06 | P14: SP2600-13 | Q14: 4337 | R14: 3196-01 ext | S14: 6335 | T14: 6334
A15: 6710 | B15: 20 | C15: 3/4" BSP | D15: Flange | F15: SK241 | G15: 2995-0030 | H15: 673-0001-P | I15: SP2701-04 | J15: SP1002-09 | K15: 4454 | L15: SP1002-02 | Q15: 6717 | R15: 4466 | S15: 3992 | T15: 4764-41
A16: 9360 | B16: 10 | C16: 1/4" BSP | D16: Foot | F16: SK223 | G16: 1126 | H16: 4528-0001-P | I16: AL22 | J16: SP8019-01 | K16: ALS-01 | L16: SP1002-02 | Q16: AL10 | S16: AL6-200 | T16: AL4-200
A17: 9380 | B17: 40 | C17: 3/4" BSP | D17: Flange | F17: SK33 | G17: 3298 | H17: 1210-0001-P | I17: SP2701-21 | J17: SP1002-02 | K17: 3269 | L17: SP1003-01 | M17: SP2701-21 | N17: SP2600-13 | P17: SP2600-13 | Q17: 5857 | R17: 3266 | S17: 3991 | T17: 3374-200
A18: 9400 | B18: 20 | C18: 0 16 Hose | D18: Flange | F18: SK211 | G18: 10817 | H18: 673-0001-P | I18: SP2701-04 | J18: SP1002-09 | K18: 2907-0001 | L18: SP1002-09 | Q18: 9407 | S18: 9406 | T18: 9404
A19: 9430 | B19: 10 | C19: 1/4" BSP | D19: Flange | E19: Exhaust Cooling | F19: SK221 | G19: 1126 | H19: 4528-0001-P | I19: SP2701-09 | J19: SP1002-01 | K19: ALS | L19: SP1002-09 | O19: SP2701-09 | Q19: 9436 | S19: AL6-200 | T19: 4784
A20: 9560 | B20: 10 | C20: 3/8" BSP | D20: Flange | F20: SK23 | G20: 1189 | H20: 4528-0001-P | I20: SP2701-14 | J20: SP1002-01 | K20: 2763 | L20: SP1002-03 | Q20: Contact Manufacturer | R20: 2765 | S20: 9566 | T20: 9564
A21: 9700 | B21: 80 | C21: 1" Flanged | D21: Flange | F21: SK238 | G21: 890 | H21: 17937-0001-P | I21: 22645-0000 | J21: SP1003-01 | K21: 3255 | L21: SP1004-11 | M21: SP2700-48 | P21: SP2600-06 | Q21: 9707 | R21: 4156 | S21: 3993 | T21: 9704
A22: 9710 | B22: 80 | C22: 1" NPT | D22: Foot | E22: 9710-200 | F22: SK229 | G22: 890 | H22: 17937-0001-P | I22: 22617-0010 | J22: SP1003-09 | K22: 934-0000 | L22: SP1004-09 | M22: SP2701-21 | N22: SP2600-38 | O22: SP2700-47 | P22: SP2600-38 | Q22: 9717 | R22: 4156 | S22: 3993 | T22: 10329
A23: 9730 | B23: 80 | C23: 0 32 Hose | D23: Flange | F23: SK269 | G23: 890-01 | H23: 17937-0001-P | I23: 22626-0000 | J23: SP1003-09 | K23: 890 | L23: SP1004-09 | M23: SP2700-07 | N23: SP2600-01 | P23: SP2600-01 | Q23: 9737 | R23: 4156 | S23: 3993 | T23: 9734
A24: 9750 | B24: 80 | C24: 0 32 Hose | D24: Flange | F24: SK269 | G24: 3101-01 | H24: 17937-0001-P | I24: 22626-0000 | J24: SP1003-09 | K24: 3255 | L24: SP1004-11 | M24: SP2700-07 | N24: SP2600-01 | P24: SP2600-01 | Q24: 9757 | R24: 4156 | S24: 3993 | T24: 9754
A25: 9760 | B25: 80 | C25: 0 32 Hose | D25: Flange | F25: SK269 | G25: 890-01 | H25: 17937-0001-P | I25: 22626-0000 | J25: SP1003-09 | K25: 934-0000 | L25: SP1004-11 | M25: SP2700-07 | N25: SP2600-01 | O25: SP2700-07 | P25: SP2600-01 | Q25: 9767 | R25: 4156 | S25: 3993 | T25: 9754
A26: 9900 | B26: 20 | C26: 0 16 Hose | D26: Foot | E26: 29470- 2231C | F26: SK211 | G26: 10817 | H26: 673-0001-P | I26: SP2701-04 | J26: SP1002-09 | K26: 10818 | L26: SP1002-02 | Q26: 9907 | S26: 9905 | T26: 9904
A27: 10490 | B27: 270 | C27: 2" Flanged | D27: Foot | E27: 52270- 0011 | F27: SK254 | G27: 816 | H27: 21676-0001-P | I27: 21849 | J27: SP1005-04 | K27: 6988 | L27: SP1005-04 | M27: SP2701-54 | N27: SP2601-37 | O27: SP2700-49 | P27: SP2601-37 | Q27: 11254-01 | R27: 2574 | S27: 9936 | T27: 10494
A28: 10590 | B28: 270 | C28: 2" Flanged | D28: Flange | E28: 10590-22 | F28: SK254 | G28: 816 | H28: 21676-0001-P | I28: 21849 | J28: SP1005-04 | K28: 6988 | L28: SP1005-04 | M28: SP2701-54 | N28: SP2601-37 | P28: SP2601-41 | Q28: 11258-01 | R28: 2574 | S28: 9336 | T28: 10494
A29: 10630 | B29: 200 | C29: 1-1/2" Flanged | D29: Foot | E29: 52220- 0011 | F29: SK230 | G29: 816 | H29: 836-0001-P | I29: 21849 | J29: SP1005-04 | K29: 834 | L29: SP1005-04 | M29: SP2701-54 | N29: SP2601-37 | O29: SP2700-49 | P29: SP2601-37 | Q29: 11254 | R29: 2574 | S29: 9336 | T29: 10634
A30: 10650 | B30: 200 | C30: 1-1/2" Flanged | D30: Foot | E30: 51220- 0011 | F30: SK230 | G30: 816 | H30: 836-0001-P | I30: 21849 | J30: SP1005-04 | K30: 834 | L30: SP1005-04 | M30: SP2701-54 | N30: SP2601-37 | P30: SP2601-37 | Q30: 10657-0020 | R30: 2574 | S30: 9336 | T30: 10634
A31: 10660 | B31: 270 | C31: 2" Flanged | D31: Foot | E31: 51270- 0011 | F31: SK254 | G31: 816 | H31: 17936-0001-P | I31: 21849 | J31: SP1005-04 | K31: 6988 | L31: SP1005-04 | M31: SP2701-54 | N31: SP2601-37 | P31: SP2600-09 | Q31: 10657-0030 | R31: 2574 | S31: 9336 | T31: 10494
A32: 10670 | B32: 200 | C32: 1-1/2" Flanged | D32: Foot | E32: 50220- 0011 | F32: SK230-01 | G32: 816 | H32: 836-0001-P | I32: 21849 | J32: SP1005-04 | K32: 834 | L32: SP1005-04 | M32: SP2701-54 | N32: SP2601-37 | P32: SP2601-37 | Q32: 10667-0020 | R32: 2574 | S32: 9336 | T32: 10634-02
A33: 10680 | B33: 270 | C33: 2" Flanged | D33: Foot | E33: 50270- 0011 | F33: SK254 | G33: 816 | H33: 21676-0001-P | I33: 21849 | J33: SP1005-04 | K33: 6988 | L33: SP1005-04 | M33: SP2701-54 | N33: SP2601-37 | P33: SP2600-09 | Q33: 10667-0030 | R33: 2574 | S33: 9336 | T33: 10494-01
A34: 10970 | B34: 40 | C34: 3/4" NPTF | D34: Flange | F34: SK268-01 | G34: 3298 | H34: 1210-0001-P | I34: 22617-0010 | J34: SP1002-02 | K34: 490 | L34: SP1003-01 | M34: SP2701-21 | N34: SP2601-39 | P34: SP2601-39 | Q34: 9977-01 | R34: 7883 | S34: 3992 | T34: 10974
A35: 11000 | B35: 20 | C35: 0 16 Hose | D35: Flange | F35: SK211 | G35: 10817 | H35: 673-0001-P | I35: SP2701-04 | J35: SP1002-09 | K35: 2441 | L35: SP1002-01 | Q35: 11007 | S35: 9905 | T35: 9904
A36: 11600 | B36: 80 | C36: 1" NPT | D36: Foot | F36: SK299 | G36: 890 | H36: 17937-0001-P | I36: 22617-0010 | J36: SP1003-09 | K36: 934-0000 | L36: SP1004-09 | M36: SP2701-0940 | O36: SP2700-48 | P36: SP2601-42 | Q36: 11608 | R36: 4156 | S36: 3993 | T36: 11604
A37: 11790 | B37: 200 | C37: 1-1/2" Flanged | D37: Flange | F37: SK230 | G37: 816 | H37: 836-0001-P | I37: 21849 | J37: SP1005-04 | K37: 834 | L37: SP1005-04 | N37: SP2601-37 | O37: SP2701-54 | P37: SP2601-41 | Q37: 11796-0010 | R37: 2574 | S37: 9336 | T37: 10584
A38: 14620 | B38: 80 | C38: 1" Hose | D38: Flange | F38: SK153 | G38: 890 | H38: 4598-0001-P | I38: SP6080-08 | J38: SP1014-03 | K38: 7867 | L38: SP1003-01 | M38: SP2700-48 | N38: SP2600-25 | Q38: 14627 | R38: 7868 | S38: 14625 | T38: 14622
A39: 21100 | B39: 80 | C39: 1" BSP | D39: Foot | F39: SK288 | G39: 890 | H39: 17937-0001-P | I39: 22626-0000 | J39: SP1003-09 | K39: 21167 | L39: SP1004-09 | M39: SP2701-21 | N39: SP2601-10 | P39: SP2601-10 | Q39: 11127-02 | R39: 21168 | S39: 3993 | T39: 10329-02
A40: 21180 | B40: 200 | C40: 1-1/4" Flanged | D40: Flange | F40: SK293-01 | G40: 816 | H40: 836-0001-P | I40: 21849 | J40: SP1005-04 | K40: 834 | L40: SP1005-04 | M40: SP2701-51 | N40: SP2601-30 | P40: SP2601-30 | Q40: 21186 | R40: 2574 | S40: 9336 | T40: 21183
A41: 21690 | B41: 40 | C41: 0 20 Hose | D41: Flange | F41: SK239 | G41: 3298 | H41: 1210-0001-P | I41: 22626-0000 | J41: SP1002-02 | K41: 490 | L41: SP1003-01 | M41: SP2701-21 | N41: SP2601-44 | P41: SP2601-44 | Q41: 21698 | R41: 7883 | S41: 3992 | T41: 21699
A42: 21770 | B42: 40 | C42: 0 32 Hose | D42: Flange | F42: SK309 | G42: 4908 | H42: 4568-0001-P | I42: SP2701-01 | J42: SP1003-09 | K42: 490 | L42: SP1003-07 | O42: SP2701-01 | Q42: 21777 | R42: 7883 | S42: 21775 | T42: 21774
A43: 21780 | B43: 200 | C43: 1-1/4" BSP | D43: Foot | F43: SK230 | G43: 816 | H43: 836-0001-P | I43: 21849 | J43: SP1005-04 | K43: 21789 | L43: SP1004-09 | M43: SP2700-50 | O43: SP2700-49 | P43: SP2600-04 | Q43: 21788 | R43: 4156 | S43: 3993 | T43: 21784
A44: 21810 | B44: 200 | C44: 1-1/4" BSP | D44: Foot | F44: SK310 | G44: 890 | H44: 17018-0001-P | I44: 22617-0000 | J44: SP1003-09 | K44: 834 | L44: SP1005-04 | M44: SP2700-50 | N44: SP2600-18 | Q44: 21238 | R44: 2574 | S44: 9336 | T44: 10584-11
A45: 21890 | B45: 120 | C45: 1-1/2" BSP | D45: Flange | E45: 10880- 2611 | F45: SK310 | G45: 890 | H45: 17018-0001-P | I45: 22617-0000 | J45: SP1003-09 | K45: 2551 | L45: SP1005-05 | R45: 2574 | S45: 3993 | T45: 10329-200
A46: 21980 | B46: 200 | C46: 1-1/4" BSP | D46: Foot | F46: SK317 | G46: 816 | H46: 836-0001-P | I46: 21849 | J46: SP1005-04 | K46: 834 | L46: SP1005-04 | M46: SP2701-86 | N46: SP2601-37 | P46: SP2601-37 | Q46: 21997 | R46: 2574 | S46: 9336 | T46: 10634
A47: 21990 | B47: 270 | C47: 2" Flanged | D47: Foot | F47: SK254 | G47: 816 | H47: 21676-0001-P | I47: 21849 | J47: SP1005-04 | K47: 6988 | L47: SP1005-04 | M47: SP2701-86 | N47: SP2601-37 | P47: SP2601-37 | Q47: 21997-01 | R47: 2574 | S47: 9336 | T47: 10494
A48: 22240 | B48: 20 | C48: 0 16 Hose | D48: Flange | E48: Salt Water | F48: SK333 | G48: 9408 | H48: 673-0001-P | I48: SP2701-09 | J48: SP1107-05 | K48: 22217 | L48: SP1002-01 | T48: 11474-01
A49: 22240 | B49: 20 | C49: 0 16 Hose | D49: Flange | E49: Fresh Water | F49: SK333 | G49: 9408 | H49: 673-0001-P | I49: SP2701-09 | J49: SP1107-05 | K49: 10818 | L49: SP1002-02 | Q49: 22247 | S49: 11478(DivPI) | T49: 22374
A50: 22360 | B50: 20 | C50: 0 16 Hose | D50: N/A | E50: Salt Water | F50: SK337 | G50: 10817 | H50: 673-0001-P | I50: SP2701-04 | J50: X3075-062G | K50: 10818 | L50: SP1002-01 | S50: 22366 | T50: 22364
A51: 22360 | B51: 20 | C51: 0 16 Hose | D51: Flange | E51: Fresh Water | F51: SK337 | G51: 10817 | H51: 673-0001-P | I51: SP2701-04 | J51: X3075-062G | K51: 22217 | L51: SP1002-02 | M51: SP2701-04 | O51: SP2701-04 | Q51: 22247 | S51: 11478(DivPI) | T51: 22374
A52: 22620 | B52: 20 | C52: 0 25 Hose | D52: Crank | E52: 29440- 1101 | F52: SK346 | G52: 1985-01 | H52: 673-0001-P | I52: SP6080-08 | J52: SP1004-09 | K52: 2907-0001 | L52: SP1002-01 | P52: SP2600-09 | Q52: 22627 | S52: 9328 | T52: 22624
A53: 22770 | B53: 20 | C53: 0 25 Hose | D53: Crank | E53: 29440- 1001 | F53: SK346 | G53: 1985-01 | H53: 673-0001-P | I53: SP2701-21 | J53: SP1004-09 | K53: 2907-0001 | L53: SP1002-01 | P53: SP2600-09 | Q53: 22627 | S53: 9328 | T53: 22624
A54: 29500 | B54: 40 | C54: 0 28 Hose | D54: Flange | F54: SK384-0001 | G54: 3298 | H54: 1210-0001-P | I54: SP2700-1027 | J54: SP1002-02 | K54: 490 | L54: SP1003-01 | M54: SP2700-1027 | N54: SP2601-0451 | P54: SP2601-0451 | Q54: 29508-0000 | R54: 7883 | S54: 3992 | T54: 29504-1000
A55: 10170-0011 | B55: 40 | C55: 1" Hose | D55: Flange | F55: 90133-0001 | G55: 10183-0000 | H55: 1210-0001-P | I55: 96080-0080 | J55: 91003-0020 | K55: 490-0000 | L55: 91003-0070 | M55: 92700-0480 | N55: 92600-0060 | O55: 92701-0160 | R55: Obsolete | S55: Obsolete | T55: Obsolete
A56: 10170-0011 | B56: 80 | C56: 1-1/4" Hose | G56: 10184-0000 | H56: 11979-0001-P | K56: 10182-0000 | L56: 91004-0090
A57: 10190-0011 | B57: 40 | C57: 1" Hose | H57: 3085-0001-P
A58: 10490-0201 | B58: 270 | C58: 2" Flanged | D58: Foot | E58: 50270- 0911 | F58: SK254 | G58: 816 | H58: 21676-0001-P | I58: 21849 | J58: SP1005-04 | K58: 6988 | L58: SP1005-04 | M58: SP2701-54 | N58: SP2601-37 | O58: SP2700-49 | P58: SP2601-37 | Q58: 11254-01 | R58: 2574 | S58: 9936 | T58: 10494-03
A59: 10490-07 | B59: 270 | C59: 2" Flanged | D59: Foot | E59: 52270- 0011 | F59: SK254 | G59: 816 | H59: 21676-0001-P | I59: 21849 | J59: SP1005-04 | K59: 6988 | L59: SP1005-04 | M59: SP2701-54 | N59: SP2601-37 | O59: SP2700-49 | P59: SP2601-37 | Q59: 11254-01 | R59: 2574 | S59: 9936 | T59: 10494
A60: 10490-207 | B60: 270 | C60: 2" Flanged | D60: Foot | E60: 52270- 0011 | F60: SK254 | G60: 816 | H60: 21676-0001-P | I60: 21849 | J60: SP1005-04 | K60: 6988 | L60: SP1005-04 | M60: SP2701-54 | N60: SP2601-37 | O60: SP2700-49 | P60: SP2601-37 | Q60: 11254-01 | R60: 2574 | S60: 9936 | T60: 10494
A61: 10550-01 | B61: 40 | C61: 3/4" NPT | D61: Foot | F61: SK239 | G61: 3298 | H61: 1210-0001-P | I61: 22626-0000 | J61: SP1002-02 | K61: 10336 | L61: SP1003-09 | M61: SP2701-21 | N61: SP2601-39 | O61: SP2701-15 | P61: SP2601-39 | Q61: 10417 | R61: 7883 | S61: 3992 | T61: 10554
A62: 10550-200 | B62: 40 | C62: 3/4" BSP | D62: Foot | F62: SK239 | G62: 3298 | H62: 1210-0001-P | I62: 22626-0000 | J62: SP1002-02 | K62: 490 | L62: SP1003-01 | M62: SP2701-21 | N62: SP2601-39 | O62: SP2701-15 | P62: SP2601-39 | Q62: 10417 | R62: 7883 | S62: 3992 | T62: 10554
A63: 10550-205 | B63: 40 | C63: 3/4" BSP | D63: Foot | F63: SK239 | G63: 3298 | H63: 1210-0001-P | I63: 22626-0000 | J63: SP1002-02 | K63: 10336 | L63: SP1003-09 | M63: SP2701-21 | N63: SP2601-39 | O63: SP2701-15 | P63: SP2601-39 | Q63: 10417 | R63: 7883 | S63: 3992 | T63: 10554
A64: 10550-2103 | B64: 40 | C64: 3/4" BSP | D64: Foot | F64: SK239-0003 | G64: 3298 | H64: 1210-0003-P | I64: 22626-0000 | J64: X3001-095F | K64: 490 | L64: SP1003-01 | M64: SP2701-21 | N64: SP2601-39 | O64: SP2701-15 | P64: SP2601-39 | Q64: 10417-2100 | R64: 22906-0000 | S64: 22907-0000 | T64: 10554-2100
A65: 10550-2701 | B65: 40 | C65: 3/4" BSP | D65: Foot | F65: SK239 | G65: 3298 | H65: 1210-0001-P | I65: 22626-0000 | J65: SP1002-02 | K65: 490 | L65: SP1003-01 | M65: SP2701-21 | N65: SP2601-39 | O65: SP2701-15 | P65: SP2601-39 | Q65: 10417 | R65: 7883 | S65: 3992 | T65: 10974
A66: 10590-0031 | B66: 270 | C66: 2" Flanged | D66: Flange | E66: 10590- 0111 | F66: SK254 | G66: 816 | H66: 21676-0001-P | I66: 21849 | J66: SP1005-04 | K66: 22039 | L66: SP1005-05 | M66: SP2701-54 | N66: SP2601-37 | P66: SP2601-37 | Q66: 11256-01 | R66: 2574 | S66: 9336 | T66: 10494
A67: 10590-0041 | B67: 270 | C67: 2" Flanged | D67: Flange | E67: 10590- 0111 | F67: SK254 | G67: 816 | H67: 21676-0001-P | I67: 21849 | J67: SP1005-04 | K67: 22268 | L67: SP1005-05 | M67: SP2701-54 | N67: SP2601-37 | P67: SP2601-37 | Q67: 11258-01 | R67: 2574 | S67: 9336 | T67: 10494
A68: 10590-01 | B68: 270 | C68: 2" Flanged | D68: Flange | E68: 11101-01- 01 | F68: SK254 | G68: 816 | H68: 21676-0001-P | I68: 21849 | J68: SP1005-04 | K68: 6988 | L68: SP1003-09 | M68: SP2701-21 | N68: SP2601-39 | O68: SP2701-15 | P68: SP2601-39 | Q68: 10417 | R68: 7883 | S68: 3992 | T68: 10494
A69: 10590-0111 | B69: 270 | C69: 2" Flanged | D69: Flange | F69: SK254 | G69: 816 | H69: 17936-0001-P | I69: 21849 | J69: SP1095- 0640 | K69: 6988 | L69: SP1005-04 | M69: SP2701-54 | N69: SP2601- 0458 | P69: SP2601- 0458 | Q69: 11256-01 | R69: 2574 | S69: 9336 | T69: 10494
A70: 10590-0141 | B70: 270 | C70: 2" Flanged | D70: Flange | E70: 10590- 0041 | F70: SK254 | G70: 816 | H70: 21676-0001-P | I70: 21849 | J70: SP1005-04 | K70: 22268 | L70: SP1005-05 | M70: SP2701-54 | N70: SP2601-37 | P70: SP2601-37 | Q70: 11258-01 | R70: 2574 | S70: 9336 | T70: 10494
A71: 10590-0201 | B71: 270 | C71: 2" Flanged | D71: Flange | E71: 10590- 0111 | F71: SK254 | G71: 816 | H71: 21676-0001-P | I71: 21849 | J71: SP1005-04 | K71: 6988 | L71: SP1005-04 | M71: SP2701-54 | N71: SP2601-37 | O71: SP2700-49 | P71: SP2601-37 | Q71: 11256-01 | R71: 2574 | S71: 9336 | T71: 10494
A72: 10590-0231 | B72: 270 | C72: 2" Flanged | D72: Flange | F72: SK254 | G72: 816 | H72: 17936-0001-P | I72: 21849 | J72: SP1095- 0640 | K72: 22039 | L72: SP1005-04 | M72: SP2701-54 | N72: SP2601-37 | P72: SP2601-37 | Q72: 11256-01 | R72: 2574 | S72: 10773 | T72: 10494
A73: 10590-0341 | B73: 270 | C73: 2" Flanged | D73: Flange | F73: SK254 | G73: 816 | H73: 17936-0001-P | I73: 21849 | J73: SP1095- 0640 | K73: 6988 | L73: SP1005-04 | M73: SP2701-54 | N73: SP2601-37 | P73: SP2601-37 | Q73: 11256-01 | R73: 2574 | S73: 10773 | T73: 10494
A74: 10590-21 | B74: 270 | C74: 2" Flanged | D74: Flange | E74: 10590-22 | F74: SK254 | G74: 816 | H74: 21676-0001-P | I74: 21849 | J74: SP1005-04 | K74: 6988 | L74: SP1005-04 | M74: SP2701-54 | N74: SP2601-37 | P74: SP2601-41 | Q74: 11258-01 | R74: 2574 | S74: 9336 | T74: 10494
A75: 10590-22 | B75: 270 | C75: 2" Flanged | D75: Flange | E75: 10590- 0111 | F75: SK254 | G75: 816 | H75: 21676-0001-P | I75: 21849 | J75: SP1005-04 | K75: 6988 | L75: SP1005-04 | M75: SP2701-54 | N75: SP2601-37 | P75: SP2601-41 | Q75: 11258-01 | R75: 2574 | S75: 9336 | T75: 10494
A76: 10590-61 | B76: 270 | C76: 2" Flanged | D76: Flange | E76: 10590-62 | F76: SK254 | G76: 816 | H76: 21676-0001-P | I76: 21849 | J76: SP1005-04 | K76: 6988 | L76: SP1005-04 | M76: SP2701-54 | N76: SP2601-37 | P76: SP2601-41 | Q76: 11258-01 | R76: 2574 | S76: 9336 | T76: 10494
A77: 10590-62 | B77: 270 | C77: 2" Flanged | D77: Flange | F77: SK254 | G77: 816 | H77: 21676-0001-P | I77: 21849 | J77: SP1005-04 | K77: 6988 | L77: SP1005-04 | M77: SP2701-54 | N77: SP2601-37 | P77: SP2601-41 | Q77: 11258-01 | R77: 2574 | S77: 9336 | T77: 10494
A78: 10590-63 | B78: 270 | C78: 2" Flanged | D78: Flange | F78: SK254 | G78: 816 | H78: 21676-0001-P | I78: 21849 | J78: SP1005-04 | K78: 6988 | L78: SP1005-04 | M78: SP2701-54 | N78: SP2601-37 | P78: SP2601-43 | Q78: 11258-01 | R78: 2574 | S78: 9336 | T78: 10494
A79: 10630-01 | B79: 200 | C79: 1-1/2" Flanged | D79: Foot | E79: 52220- 0011 | F79: SK230 | G79: 816 | H79: 836-0001-P | I79: 21849 | J79: SP1005-04 | K79: 834 | L79: SP1005-04 | M79: SP2701-54 | N79: SP2601-37 | O79: SP2700-49 | P79: SP2601-37 | Q79: 11228-9000 | R79: 2574 | S79: 9336 | T79: 10634
A80: 10630-07 | B80: 200 | C80: 1-1/2" Flanged | D80: Foot | E80: 52220- 0011 | F80: SK230 | G80: 816 | H80: 836-0001-P | I80: 21849 | J80: SP1005-04 | K80: 834 | L80: SP1005-04 | M80: SP2701-54 | N80: SP2601-37 | O80: SP2700-49 | P80: SP2601-37 | Q80: 11254 | R80: 2574 | S80: 9336 | T80: 10634
A81: 10630-200 | B81: 200 | C81: 1-1/2" Flanged | D81: Foot | E81: 52220- 0011 | F81: SK230 | G81: 816 | H81: 836-0001-P | I81: 21849 | J81: SP1005-04 | K81: 834 | L81: SP1005-04 | M81: SP2701-54 | N81: SP2601-37 | O81: SP2700-49 | P81: SP2601-37 | Q81: 11254 | R81: 2574 | S81: 9336 | T81: 10634
A82: 10630-207 | B82: 200 | C82: 1-1/2" Flanged | D82: Foot | E82: 52220- 0011 | F82: SK230 | G82: 816 | H82: 836-0001-P | I82: 21849 | J82: SP1005-04 | K82: 834 | L82: SP1005-04 | M82: SP2701-54 | N82: SP2601-37 | O82: SP2700-49 | P82: SP2601-37 | Q82: 11254 | R82: 2574 | S82: 9336 | T82: 10634
A83: 10630-57 | B83: 200 | C83: 1-1/2" Flanged | D83: Flange | E83: 52220- 0011 | F83: SK230 | G83: 816 | H83: 836-0001-P | I83: 21849 | J83: SP1005-04 | K83: 2551 | L83: SP1005-05 | M83: SP2701-54 | N83: SP2601-37 | O83: SP2700-49 | P83: SP2601-37 | Q83: 11254 | R83: 2574 | S83: 9336 | T83: 10634
A84: 10650-200 | B84: 200 | C84: 1-1/2" Flanged | D84: Foot | E84: 51200- 2011 | F84: SK230 | G84: 816 | H84: 836-0001-P | I84: 21849 | J84: SP1005-04 | K84: 834 | L84: SP1005-04 | M84: SP2701-54 | N84: SP2601-37 | P84: SP2601-37 | Q84: 10657-0020 | R84: 2574 | S84: 9336 | T84: 10634
A85: 10660-200 | B85: 270 | C85: 2" Flanged | D85: Foot | E85: 51270- 2011 | F85: SK254 | G85: 816 | H85: 17936-0001-P | I85: 21849 | J85: SP1005-04 | K85: 6988 | L85: SP1005-04 | M85: SP2701-54 | N85: SP2601-37 | P85: SP2600-09 | Q85: 10657-0030 | R85: 2574 | S85: 9336 | T85: 10494
A86: 10670-01 | B86: 200 | C86: 1-1/2" Flanged | D86: Foot | E86: 50220- 0111 | F86: SK230-01 | G86: 816 | H86: 836-0001-P | I86: 21849 | J86: SP1005-04 | K86: 834 | L86: SP1005-04 | M86: SP2701-54 | N86: SP2601-37 | P86: SP2601-37 | Q86: 10667-0020 | R86: 2574 | S86: 9336 | T86: 10634-02
A87: 10670-10 | B87: 200 | C87: 1-1/2" Flanged | D87: Foot | E87: 50220- 0211 | F87: SK230-01 | G87: 816 | H87: 836-0001-P | I87: 21849 | J87: SP1005-04 | K87: 834 | L87: SP1005-04 | M87: SP2701-54 | N87: SP2601-37 | P87: SP2601-37 | Q87: 10667-0020 | R87: 2574 | S87: 9336 | T87: 10634-02
A88: 10670-11 | B88: 200 | C88: 1-1/2" Flanged | D88: Foot | E88: 50220- 0311 | F88: SK230-01 | G88: 816 | H88: 836-0001-P | I88: 21849 | J88: SP1005-04 | K88: 834 | L88: SP1005-04 | M88: SP2701-54 | N88: SP2601-37 | P88: SP2601-37 | Q88: 10667-0020 | R88: 2574 | S88: 9336 | T88: 10634-02
A89: 10670-200 | B89: 200 | C89: 1-1/2" Flanged | D89: Foot | E89: 50200- 2011 | F89: SK230-01 | G89: 816 | H89: 836-0001-P | I89: 21849 | J89: SP1005-04 | K89: 834 | L89: SP1005-04 | M89: SP2701-54 | N89: SP2601-37 | P89: SP2601-37 | Q89: 10667-0020 | R89: 2574 | S89: 9336 | T89: 10634-02
A90: 10670-201 | B90: 200 | C90: 1-1/2" Flanged | D90: Foot | E90: 50200- 2111 | F90: SK230-01 | G90: 816 | H90: 836-0001-P | I90: 21849 | J90: SP1005-04 | K90: 834 | L90: SP1005-04 | M90: SP2701-54 | N90: SP2601-37 | P90: SP2601-37 | Q90: 10667-0020 | R90: 2574 | S90: 9336 | T90: 10634-02
A91: 10670-210 | B91: 200 | C91: 1-1/2" Flanged | D91: Foot | E91: 50200- 2211 | F91: SK230-01 | G91: 816 | H91: 836-0001-P | I91: 21849 | J91: SP1005-04 | K91: 834 | L91: SP1005-04 | M91: SP2701-54 | N91: SP2601-37 | P91: SP2601-37 | Q91: 10667-0020 | R91: 2574 | S91: 9336 | T91: 10634-02
A92: 10670-211 | B92: 200 | C92: 1-1/2" Flanged | D92: Foot | E92: 50200- 2311 | F92: SK230-01 | G92: 816 | H92: 836-0001-P | I92: 21849 | J92: SP1005-04 | K92: 834 | L92: SP1005-04 | M92: SP2701-54 | N92: SP2601-37 | P92: SP2601-37 | Q92: 10667-0020 | R92: 2574 | S92: 9336 | T92: 10494-01
A93: 10680-01 | B93: 270 | C93: 2" Flanged | D93: Foot | E93: 50270- 0111 | F93: SK254 | G93: 816 | H93: 21676-0001-P | I93: 21849 | J93: SP1005-04 | K93: 6988 | L93: SP1005-04 | M93: SP2701-54 | N93: SP2601-37 | P93: SP2600-09 | Q93: 10667-0030 | R93: 2574 | S93: 9336 | T93: 10494-01
A94: 10680-10 | B94: 270 | C94: 2" Flanged | D94: Foot | E94: 50270- 0211 | F94: SK254 | G94: 816 | H94: 21676-0001-P | I94: 21849 | J94: SP1005-04 | K94: 6988 | L94: SP1005-04 | M94: SP2701-54 | N94: SP2601-37 | P94: SP2600-09 | Q94: 10667-0030 | R94: 2574 | S94: 9336 | T94: 10494-01
A95: 10680-11 | B95: 270 | C95: 2" Flanged | D95: Foot | E95: 50270- 0311 | F95: SK254 | G95: 816 | H95: 21676-0001-P | I95: 21849 | J95: SP1005-04 | K95: 6988 | L95: SP1005-04 | M95: SP2701-54 | N95: SP2601-37 | P95: SP2600-09 | Q95: 10667-0030 | R95: 2574 | S95: 9336 | T95: 10494-01
A96: 10680-200 | B96: 270 | C96: 2" Flanged | D96: Foot | E96: 50270- 2011 | F96: SK254 | G96: 816 | H96: 21676-0001-P | I96: 21849 | J96: SP1005-04 | K96: 6988 | L96: SP1005-04 | M96: SP2701-54 | N96: SP2601-37 | P96: SP2600-09 | Q96: 10667-0030 | R96: 2574 | S96: 9336 | T96: 10494-01
A97: 10680-201 | B97: 270 | C97: 2" Flanged | D97: Foot | E97: 50270- 2111 | F97: SK254 | G97: 816 | H97: 21676-0001-P | I97: 21849 | J97: SP1005-04 | K97: 6988 | L97: SP1005-04 | M97: SP2701-54 | N97: SP2601-37 | P97: SP2600-09 | Q97: 10667-0030 | R97: 2574 | S97: 9336 | T97: 10494-01
A98: 10680-210 | B98: 270 | C98: 2" Flanged | D98: Foot | E98: 50270- 2211 | F98: SK254 | G98: 816 | H98: 21676-0001-P | I98: 21849 | J98: SP1005-04 | K98: 6988 | L98: SP1005-04 | M98: SP2701-54 | N98: SP2601-37 | P98: SP2600-09 | Q98: 10667-0030 | R98: 2574 | S98: 9336 | T98: 10494-01
A99: 10680-211 | B99: 270 | C99: 2" Flanged | D99: Foot | E99: 50270- 2311 | F99: SK254 | G99: 816 | H99: 21676-0001-P | I99: 21849 | J99: SP1005-04 | K99: 6988 | L99: SP1005-04 | M99: SP2701-54 | N99: SP2601-37 | P99: SP2600-09 | Q99: 10667-0030 | R99: 2574 | S99: 9336 | T99: 10494-01
A100: 10770-0051 | B100: 200 | C100: 1-1/2" Flanged | D100: Flange | F100: SK369-0001 | G100: 816 | H100: 836-0001-P | I100: 21849 | J100: SP1095- 0640 | K100: 2551 | L100: SP1005-05 | M100: SP2701-54 | N100: SP2601-37 | P100: SP2601-37 | Q100: 11258 | R100: 2574 | S100: 9336 | T100: 10634
A101: 10770-0111 | B101: 200 | C101: 1-1/2" Flanged | D101: Flange | F101: SK230 | G101: 816 | H101: 17935-0001-P | I101: 21849 | J101: SP1095- 0640 | K101: 834 | L101: SP1005-04 | M101: SP2701-54 | N101: SP2601-37 | P101: SP2601-37 | Q101: 11256 | R101: 2574 | S101: 9336 | T101: 10634
A102: 10770-0151 | B102: 200 | C102: 1-1/2" Flanged | D102: Flange | F102: SK369-0001 | G102: 816 | H102: 836-0001-P | I102: 21849 | J102: SP1095- 0640 | K102: 2551 | L102: SP1005-05 | M102: SP2701-54 | N102: SP2601-37 | P102: SP2601-37 | Q102: 11256 | R102: 2574 | S102: 9336 | T102: 23704-0000
A103: 10770-0331 | B103: 200 | C103: 1-1/2" Flanged | D103: Flange | F103: SK369-0001 | G103: 816 | H103: 836-0001-P | I103: 21849 | J103: SP1095- 0640 | K103: 29772-0000 | L103: SP1005-05 | M103: SP2701-54 | N103: SP2601- 0458 | P103: SP2601- 0458 | Q103: 11256 | R103: 2574 | S103: 9336 | T103: 10584-03
A104: 10770-0351 | B104: 200 | C104: 1-1/2" Flanged | D104: Flange | F104: SK230-01 | G104: 816 | H104: 836-0001-P | I104: 21849 | J104: SP1005-04 | K104: 2551 | L104: SP1005-05 | M104: SP2701-54 | N104: SP2601-37 | P104: SP2601-37 | Q104: 11258 | R104: 2574 | S104: 9336 | T104: 23704-0000
A105: 10770-0531 | B105: 200 | C105: 1-1/2" Flanged | D105: Flange | G105: 816 | H105: 836-0001-P | I105: 96080-0373 | J105: SP1095- 0640 | K105: 29772-0000 | L105: SP1005-05 | M105: SP2701-54 | N105: SP2601-37 | P105: SP2601-37 | Q105: 11256 | R105: 2574 | S105: 9336 | T105: 23704-0000
A106: 10770-0551 | B106: 200 | C106: 1-1/2" Flanged | D106: Flange | G106: 816 | H106: 836-0001-P | I106: 96080-0373 | J106: SP1095- 0640 | K106: 2551 | L106: SP1005-05 | M106: SP2701-54 | N106: SP2601-37 | P106: SP2601-37 | Q106: 11256 | R106: 2574 | S106: 10773 | T106: 10634
A107: 10770-07 | B107: 200 | C107: 1-1/2" Flanged | D107: Flange | F107: SK230-01 | G107: 816 | H107: 836-0001-P | I107: 21849 | J107: SP1005-04 | K107: 834 | L107: SP1005-04 | M107: SP2701-54 | N107: SP2601-37 | P107: SP2601-41 | Q107: 11256 | R107: 2574 | S107: 9336 | T107: 10634
A108: 10770-57 | B108: 200 | C108: 1-1/2" Flanged | D108: Flange | F108: SK230-01 | G108: 816 | H108: 836-0001-P | I108: 21849 | J108: SP1005-04 | K108: 2551 | L108: SP1005-05 | M108: SP2701-54 | N108: SP2601-37 | P108: SP2601-41 | Q108: 11256 | R108: 2574 | S108: 9336 | T108: 10634
A109: 10770-62 | B109: 200 | C109: 1-1/2" Flanged | D109: Flange | F109: SK230-01 | G109: 816 | H109: 836-0001-P | I109: 21849 | J109: SP1005-04 | K109: 2551 | L109: SP1005-05 | M109: SP2701-54 | N109: SP2601-37 | P109: SP2601-41 | Q109: 21679-0000 | R109: 2574 | S109: 9336 | T109: 10634
A110: 10800-21 | B110: 200 | C110: 1" NPSF | D110: Flange | F110: SK229 | G110: 890 | H110: 17937-0001-P | I110: 22617-0010 | J110: SP1003-09 | K110: 3255 | L110: SP1004-11 | M110: 92701-6004 | N110: SP2601-10 | P110: SP2601-10 | Q110: 10807-21 | R110: 4156 | S110: 3993 | T110: 10634
A111: 10880-0051 | B111: 200 | C111: 1-1/2" Flanged | D111: Flange | F111: SK230-0161 | G111: 816 | H111: 17935-0001-P | I111: 21849 | J111: SP1095- 0640 | K111: 2551 | L111: SP1005-05 | M111: SP2701-54 | N111: SP2601- 0458 | P111: SP2601- 0458 | Q111: 11258 | R111: 2574 | S111: 9336 | T111: 10584-03
A112: 10880-0101 | B112: 200 | C112: 1-1/2" Flanged | D112: Flange | F112: SK230 | G112: 816 | H112: 836-0001-P | I112: 21849 | J112: SP1005-04 | K112: 834 | L112: SP1005-04 | M112: SP2701-54 | N112: SP2601-37 | P112: SP2601-37 | Q112: 11258 | R112: 2574 | S112: 9336 | T112: 10584-03
A113: 10880-0151 | B113: 200 | C113: 1-1/2" Flanged | D113: Flange | F113: SK230-0161 | G113: 816 | H113: 17935-0001-P | I113: 21849 | J113: SP1095- 0640 | K113: 2551 | L113: SP1005-05 | M113: SP2701-54 | N113: SP2601- 0458 | P113: SP2601- 0458 | Q113: 11256 | R113: 2574 | S113: 9336 | T113: 10584-03
A114: 10880-07 | B114: 200 | C114: 1-1/2" Flanged | D114: Flange | F114: SK230 | G114: 816 | H114: 836-0001-P | I114: 21849 | J114: SP1005-04 | K114: 834 | L114: SP1005-04 | M114: SP2701-54 | N114: SP2601-37 | P114: SP2601-41 | Q114: 11258 | R114: 2574 | S114: 9336 | T114: 10584
A115: 10880-21 | B115: 200 | C115: 1-1/2" Flanged | D115: Flange | F115: SK230 | G115: 816 | H115: 836-0001-P | I115: 21849 | J115: SP1005-04 | K115: 834 | L115: SP1005-04 | M115: SP2701-54 | N115: SP2601-37 | P115: SP2601-41 | Q115: 11228-9000 | R115: 2574 | S115: 9336 | T115: 21684-2000
A116: 10880-2461 | B116: 200 | C116: 1-1/2" Flanged | D116: Flange | E116: 10880- 2561 | F116: SK375-0101 | G116: 816 | H116: 17935-0001-P | I116: 21849 | J116: SP1005-04 | K116: 2551 | L116: SP1005-05 | M116: SP2701-54 | N116: SP2601-37 | P116: SP2601-37 | Q116: 11258-0020 | R116: 2574 | S116: 9336 | T116: 21684-2000
A117: 10880-2561 | B117: 200 | C117: 1-1/2" Flanged | D117: Flange | F117: SK375-0101 | G117: 816 | H117: 17935-0001-P | I117: 21849 | J117: SP1005-04 | K117: 2551 | L117: SP1005-05 | M117: SP2701-54 | N117: SP2601-37 | P117: SP2601-41 | Q117: 23387-0000 | R117: 2574 | S117: 9336 | T117: 21684-2000
A118: 10880-2611 | B118: 200 | C118: 1-1/2" Flanged | D118: Flange | F118: SK375-0101 | G118: 816 | H118: 17935-0001-P | I118: 21849 | J118: SP1005-04 | K118: 834 | L118: SP1005-04 | M118: SP2701-54 | N118: SP2601-37 | P118: SP2601-37 | Q118: 23387-0020 | R118: 2574 | S118: 9336 | T118: 21684-2000
A119: 10880-2661 | B119: 200 | C119: 1-1/2" Flanged | D119: Flange | F119: SK375-0101 | G119: 816 | H119: 17935-0001-P | I119: 21849 | J119: SP1005-04 | K119: 2551 | L119: SP1005-05 | M119: SP2701-54 | N119: SP2601-37 | P119: SP2601-37 | Q119: 23387-0000 | R119: 2574 | S119: 9336 | T119: 21684-2000
A120: 10880-62 | B120: 200 | C120: 1-1/2" Flanged | D120: Flange | F120: SK230-01 | G120: 816 | H120: 836-0001-P | I120: 21849 | J120: SP1005-04 | K120: 834 | L120: SP1005-04 | M120: SP2701-54 | N120: SP2601-37 | P120: SP2601-41 | Q120: 21679-0000 | R120: 2574 | S120: 9336 | T120: 10584
A121: 10950-200 | B121: 40 | C121: 3/4" BSP | D121: Flange | E121: 10950- 2401 | F121: SK239 | G121: 3298 | H121: 1210-0001-P | I121: 22617-0010 | J121: SP1002-02 | K121: 490 | L121: SP1003-01 | M121: SP2701-21 | N121: SP2601-39 | P121: SP2601-39 | Q121: 23377-0000 | R121: 7883 | S121: 3992 | T121: 10554-200
A122: 10950-201 | B122: 40 | C122: 1/2" BSP | D122: Flange | E122: 10950- 2401 | F122: SK239 | G122: 3298 | H122: 1210-0001-P | I122: 22617-0010 | J122: SP1002-02 | K122: 490 | L122: SP1003-01 | M122: SP2701-21 | N122: SP2601-39 | P122: SP2601-39 | Q122: 23377-0000 | R122: 7883 | S122: 3992 | T122: 10554-200
A123: 10950-204 | B123: 40 | C123: 3/4" BSP | D123: Flange | E123: 10950- 2401 | F123: SK239 | G123: 3298 | H123: 1210-0001-P | I123: 22617-0010 | J123: SP1002-02 | K123: 10336 | L123: SP1003-09 | M123: SP2701-21 | N123: SP2601-39 | P123: SP2601-39 | Q123: 23377-0000 | R123: 7883 | S123: 3992 | T123: 10554-200
A124: 10950-205 | B124: 40 | C124: 3/4" BSP | D124: Flange | E124: 10950- 2401 | F124: SK239 | G124: 3298 | H124: 1210-0001-P | I124: 22617-0010 | J124: SP1002-02 | K124: 10336 | L124: SP1003-09 | M124: SP2701-21 | N124: SP2601-39 | P124: SP2601-39 | Q124: 23377-0000 | R124: 7883 | S124: 3992 | T124: 10554-200
A125: 10950-2101 | B125: 40 | C125: 3/4" BSP | D125: Flange | E125: 10950- 2401 | F125: SK239 | G125: 3298 | H125: 1210-0001-P | I125: 22617-0010 | J125: SP1002-02 | K125: 490 | L125: SP1003-01 | M125: SP2701-21 | N125: SP2601-39 | P125: SP2601-39 | Q125: 22927-0000 | R125: 7883 | S125: 3992 | T125: 10554-200
A126: 10950-2141 | B126: 40 | C126: 3/4" BSP | D126: Flange | E126: 10950- 2401 | F126: SK239 | G126: 3298 | H126: 1210-0001-P | I126: 22617-0010 | J126: SP1002-02 | K126: 490 | L126: SP1003-01 | M126: SP2701-21 | N126: SP2600-01 | P126: SP2600-01 | Q126: 22927-0000 | R126: 7883 | S126: 3992 | T126: 10554-200
A127: 10950-2201 | B127: 40 | C127: 3/4" BSP | D127: Flange | E127: 10950- 2601 | F127: SK239 | G127: 3298 | H127: 1210-0001-P | I127: 22617-0010 | J127: SP1002-02 | K127: 490 | L127: SP1003-01 | M127: SP2701-21 | N127: SP2601-39 | P127: SP2601-39 | Q127: 22927-0000 | R127: 7883 | S127: 3992 | T127: 10554-200
A128: 10950-2241 | B128: 40 | C128: 3/4" BSP | D128: Flange | E128: 10950- 2601 | F128: SK239 | G128: 3298 | H128: 1210-0001-P | I128: 22617-0010 | J128: SP1002-02 | K128: 490 | L128: SP1003-01 | M128: SP2701-21 | N128: SP2600-01 | P128: SP2600-01 | Q128: 22927-0000 | R128: 7883 | S128: 3992 | T128: 10554-200
A129: 10950-2401 | B129: 40 | C129: 3/4" BSP | D129: Flange | F129: SK239 | G129: 3298 | H129: 1210-0001-P | I129: 22617-0010 | J129: SP1002-02 | K129: 490 | L129: SP1003-01 | M129: SP2701-21 | N129: SP2600-01 | P129: SP2600-01 | Q129: 23377-0000 | R129: 7883 | S129: 3992 | T129: 10554-200
A130: 10950-2441 | B130: 40 | C130: 3/4" BSP | D130: Flange | E130: 10950- 2601 | F130: SK239 | G130: 3298 | H130: 1210-0001-P | I130: 22617-0010 | J130: SP1002-02 | K130: 10336 | L130: SP1003-09 | M130: SP2701-21 | N130: SP2600-01 | P130: SP2600-01 | Q130: 23377-0000 | R130: 7883 | S130: 3992 | T130: 10554-200
A131: 10950-2451 | B131: 40 | C131: 3/4" BSP | D131: Flange | E131: 10950- 2601 | F131: SK239 | G131: 3298 | H131: 1210-0001-P | I131: 22617-0010 | J131: SP1002-02 | K131: 10336 | L131: SP1003- 09684 | M131: SP2701-21 | N131: SP2600-01 | P131: SP2600-01 | Q131: 23377-0000 | R131: 7883 | S131: 3992 | T131: 10554-200
A132: 10950-2601 | B132: 40 | C132: 3/4" BSP | D132: Flange | F132: SK239 | G132: 3298 | H132: 1210-0001-P | I132: 22617-0010 | J132: SP1002-02 | K132: 490 | L132: SP1003-09 | M132: SP2701-21 | N132: SP2600-01 | P132: SP2600-01 | Q132: 23377-0000 | R132: 7883 | S132: 3992 | T132: 10554-200
A133: 10950-2701 | B133: 40 | C133: 3/4" BSP | D133: Flange | E133: 10950- 2401 | F133: SK239 | G133: 3298 | H133: 1210-0001-P | I133: 22617-0010 | J133: SP1002-02 | K133: 490 | L133: SP1003-09 | M133: SP2701-21 | N133: SP2600-01 | P133: SP2600-01 | Q133: 23377-0000 | R133: 7883 | S133: 3992 | T133: 10554-200
A134: 10970-21 | B134: 40 | C134: 3/4" Flanged | D134: Flange | F134: SK268-01 | G134: 3298 | H134: 1210-0001-P | I134: 22617-0010 | J134: SP1002-02 | K134: 490 | L134: SP1003-01 | M134: SP2701-21 | N134: SP2601-39 | P134: SP2601-39 | Q134: 9977-01 | R134: 7883 | S134: 3992 | T134: 21148
A135: 10980-0051 | B135: 200 | C135: 1-1/2" Flanged | D135: Flange | F135: SK230-0161 | G135: 816 | H135: 17935-0001-P | I135: 21849 | J135: SP1005-04 | K135: 2551 | L135: SP1005-05 | M135: SP2700-51 | P135: SP2600-04 | Q135: 4388-07 | R135: 2574 | S135: 9336 | T135: 10634
A136: 10980-01 | B136: 200 | C136: 1-1/2" Flanged | D136: Flange | E136: 10980- 0051 | F136: SK230-01 | G136: 816 | H136: 836-0001-P | I136: 21849 | J136: SP1005-04 | K136: 2551 | L136: SP1005-05 | M136: SP2701-51 | P136: SP2600-04 | Q136: 4388-07 | R136: 2574 | S136: 9336 | T136: 10634-01
A137: 11000-01 | B137: 20 | C137: 0 16 Hose | D137: Flange | F137: SK211 | G137: 10817 | H137: 673-0001-P | I137: SP2701-04 | J137: SP1002-09 | K137: 2907 | L137: SP1002-09 | Q137: 11007 | S137: 9905 | T137: 9904
A138: 11100-0101 | B138: 270 | C138: 2" Flanged | D138: Flange | F138: SK254 | G138: 816 | H138: 21676-0001-P | I138: 21849 | J138: SP1005-04 | K138: 6988 | L138: SP1005-54 | M138: SP2701-54 | N138: SP2601-37 | P138: SP2601-37 | Q138: 11494-01 | R138: 2574 | S138: 9336 | T138: 11104-01
A139: 11100-01-01 | B139: 270 | C139: 2" BSP | D139: Flange | F139: SK254 | G139: 816 | H139: 21676-0001-P | I139: 21849 | J139: SP1005-04 | K139: 6988 | L139: SP1005-54 | M139: SP2701-54 | N139: SP2601-37 | P139: SP2601-37 | Q139: 11494-01 | R139: 2574 | S139: 9336 | T139: 11104-01
A140: 11100-0141 | B140: 270 | C140: 2" Flanged | D140: Flange | F140: SK254 | G140: 816 | H140: 21676-0001-P | I140: 21849 | J140: SP1005-04 | K140: 6988 | L140: SP1005-54 | M140: SP2701-54 | N140: SP2601-37 | P140: SP2601-37 | Q140: 11494-01 | R140: 2574 | S140: 9336 | T140: 11104-01
A141: 11100-0151 | B141: 270 | C141: 2" Flanged | D141: Flange | F141: SK254 | G141: 816 | H141: 21676-0001-P | I141: 21849 | J141: SP1005-04 | K141: 22268 | L141: SP1005-05 | M141: SP2701-54 | N141: SP2601-37 | P141: SP2601-37 | Q141: 11494-01 | R141: 2574 | S141: 9336 | T141: 11104-01
A142: 11100-0541 | B142: 270 | C142: 2" Flanged | D142: Flange | F142: SK254 | G142: 816 | H142: 21676-0001-P | I142: 21849 | J142: SP1005-04 | K142: 22268 | L142: SP1005-05 | M142: SP2701-54 | N142: SP2601- 0458 | P142: SP2601- 0458 | Q142: 23387-0010 | R142: 2574 | S142: 9336 | T142: 11104-0050
A143: 11100-0601 | B143: 270 | C143: 2" Flanged | D143: Flange | F143: SK254 | G143: 816 | H143: 17936-0001-P | I143: 21849 | J143: SP1005-04 | K143: 6988 | L143: SP1005-04 | M143: SP2701-54 | N143: SP2601- 0458 | P143: SP2601- 0458 | Q143: 23387-0010 | R143: 2574 | S143: 9336 | T143: 11104-0050
A144: 11100-0641 | B144: 270 | C144: 2" Flanged | D144: Flange | F144: SK254 | G144: 816 | H144: 17936-0001-P | I144: 21849 | J144: SP1005-04 | K144: 22268 | M144: SP2701-54 | N144: SP2601- 0458 | P144: SP2601- 0458 | Q144: 23387-0010 | R144: 2574 | S144: 9336 | T144: 11104-0050
A145: 11120-200 | B145: 80 | C145: 1" BSP | D145: Flange | F145: SK229 | G145: 890 | H145: 17937-0001-P | I145: 22617-0010 | J145: SP1003-09 | K145: 934-0000 | L145: SP1004-09 | M145: SP2701-21 | N145: SP2601-10 | P145: SP2601-10 | Q145: 11127 | R145: 4156 | S145: 3993 | T145: 10329-200
A146: 11120-204 | B146: 80 | C146: 1" BSP | D146: Flange | F146: SK229 | G146: 890 | H146: 17937-0001-P | I146: 22617-0010 | J146: SP1003-09 | K146: 3255 | L146: SP1004-11 | M146: SP2701-21 | N146: SP2601-10 | P146: SP2601-10 | Q146: 11127 | R146: 4156 | S146: 3993 | T146: 10329-200
A147: 11120-205 | B147: 80 | C147: 1" BSP | D147: Flange | F147: SK229 | G147: 890 | H147: 17937-0001-P | I147: 22617-0010 | J147: SP1003-09 | K147: 2431 | L147: SP1004-10 | M147: SP2701-21 | N147: SP2601-10 | P147: SP2601-10 | Q147: 11127 | R147: 4156 | S147: 3993 | T147: 10329-200
A148: 11150-0011 | B148: 200 | C148: 2" Flanged | D148: Foot | F148: SK254 | G148: 816 | H148: 21676-0001-P | I148: 21849 | J148: SP1005-04 | K148: 6988 | L148: SP1005-04 | M148: SP2701-54 | N148: SP2601-37 | P148: SP2601-37 | Q148: 11254-01 | R148: 2574 | S148: 9336 | T148: 11104
A149: 11260-200 | B149: 10 | C149: 1/4" BSP | D149: Flange | E149: 29300- 2101C | F149: SK266 | G149: 1126 | H149: 4528-0001-P | I149: SP2701-04 | J149: SP1002-01 | K149: ALB | L149: SP1002-09 | Q149: 11227 | S149: AL6-200 | T149: 11264-200
A150: 11260-205 | B150: 10 | C150: 1/4" BSP | D150: Flange | E150: 29300- 2151C | F150: SK266 | G150: 1126 | H150: 4528-0001-P | I150: SP2701-04 | J150: SP1002-01 | K150: ALB-01 | L150: SP1002-01 | Q150: 11227 | S150: AL6-200 | T150: 11264-200
A151: 11260-2101 | B151: 10 | C151: 3/8" BSP | D151: Flange | E151: 29300- 2201C | F151: SK266 | G151: 1126 | H151: 4528-0001-P | I151: SP2701-04 | J151: SP1002-01 | K151: ALB | L151: SP1002-09 | Q151: 11227 | S151: AL6-200 | T151: 11264-2100
A152: 11260-211 | B152: 10 | C152: 1/4" BSP | D152: Flange | F152: SK266 | G152: 1126 | H152: 4528-0001-P | I152: SP2701-04 | J152: SP1002-01 | K152: ALB | L152: SP1002-09 | Q152: 21537 | S152: AL6-200 | T152: 11264-200
A153: 11260-2151 | B153: 10 | C153: 3/8" BSP | D153: Flange | E153: 29300- 2151C | F153: SK266 | G153: 1126 | H153: 4528-0001-P | I153: SP2701-04 | J153: SP1002-01 | K153: ALB-01 | L153: SP1002-01 | Q153: 11127 | S153: AL6-200 | T153: 11264-2100
A154: 11260-2211 | B154: 10 | C154: 3/8" BSP | D154: Flange | F154: SK266 | G154: 1126 | H154: 4528-0001-P | I154: SP2701-04 | J154: SP1002-01 | K154: ALB | L154: SP1002-09 | Q154: 21537 | S154: AL6-200 | T154: 11264-200
A155: 11410-200 | B155: 40 | C155: 3/4" BSP | D155: Foot | E155: Bilge | F155: SK328 | G155: 11415 | H155: 1210-0001-P | I155: 22617-0010 | J155: SP1003-08 | K155: 7876 | L155: SP1003-01 | T155: 11414-200
A156: 11410-200 | B156: 80 | C156: 1" BSP | D156: Foot | E156: Cooling | F156: SK328 | G156: 890 | H156: 17937-0001-P | I156: 22617-0010 | J156: SP1003-11 | K156: 934-0000 | L156: SP1004-09 | M156: SP2701-21 | N156: SP2600-38 | O156: SP2700-47 | P156: SP2600-38 | Q156: 9717-21 | R156: 7883 | S156: 11416(Div Pl) | T156: 10339-221
A157: 11430-01 | B157: 10 | C157: 1/4" BSP | D157: Flange | F157: SK272 | G157: 11438 | H157: 4528-0001-P | I157: SP2700-11 | J157: SP1002-04 | K157: 11436 | L157: SP1002-01 | M157: SP2701-22 | P157: SP2600-07 | Q157: 11437 | R157: 2765 | S157: 11435 | T157: 11434-01
A158: 11470-200 | B158: 20 | C158: 0 16 Hose | D158: Flange | E158: Bilge | F158: SK325 | G158: 11475 | H158: 673-0001-P | I158: 22626-0000 | J158: SP1002-03 | K158: 2907-0001 | L158: SP1002-09 | T158: 11474
A159: 11470-200 | B159: 40 | C159: 3/4" BSP | D159: Flange | E159: Cooling | F159: SK325 | G159: 11476 | H159: 1210-0001-P | I159: 22626-0000 | J159: SP1002-06 | K159: 490 | L159: SP1003-01 | M159: SP2701-21 | N159: SP2600-13 | P159: SP2600-13 | Q159: 11447 | R159: 7883 | S159: 11478 (Div Pl) | T159: 10974-221
A160: 11570-200 | B160: 20 | C160: 0 16 Hose | D160: Flange | E160: Bilge | F160: SK325 | G160: 11475 | H160: 673-0001-P | I160: 22626-0000 | J160: SP1002-03 | K160: 2907-0001 | L160: SP1002-09 | T160: 11474
A161: 11570-200 | B161: 40 | C161: 3/4" BSP | D161: Flange | E161: Cooling | F161: SK325 | G161: 11476 | H161: 1210-0001-P | I161: 22626-0000 | J161: SP1002-06 | K161: 490 | L161: SP1003-01 | M161: SP2703-02 | N161: SP2601-39 | O161: SP2701-15 | P161: SP2601-39 | Q161: 11577 | R161: 7883 | S161: 11478 (Div Pl) | T161: 10554-221
A162: 11590-204 | B162: 40 | C162: 3/4" BSP | D162: Foot | E162: Bilge | F162: SK285 | G162: 11415 | H162: 1210-0001-P | I162: 22645-0000 | J162: SP1003-08 | K162: 7876 | L162: SP1003-01 | T162: 11414-200
A163: 11590-204 | B163: 80 | C163: 1" BSP | D163: Foot | E163: Cooling | F163: SK285 | G163: 11593 | H163: 17937-0001-P | I163: 22645-0000 | J163: SP1003-11 | K163: 3255 | L163: SP1004-11 | M163: SP2700-48 | P163: SP2600-06 | Q163: 9707-21 | R163: 4156 | S163: 11416(Div Pl) | T163: 9704-21
A164: 11620-200 | B164: 10 | C164: 1/4" BSP | D164: Flange | E164: 22830- 2101 | F164: SK23 | G164: 1189 | H164: 4528-0001-P | I164: SP2701-11 | J164: SP1002-01 | K164: 2763 | L164: SP1002-03 | M164: SP2700-63 | P164: SP2600-08 | Q164: 1053-11 | R164: 2765 | S164: 9566 | T164: 11624-200
A165: 11620-211 | B165: 10 | C165: 1/4" BSP | D165: Flange | F165: SK23 | G165: 1189 | H165: 4528-0001-P | I165: SP2701-11 | J165: SP1002-01 | K165: 2763 | L165: SP1002-03 | M165: SP2700-63 | P165: SP2600-08 | Q165: 1053-11 | R165: 2765 | S165: 9566 | T165: 11624-200
A166: 11650-200 | B166: 10 | C166: 3/8" BSP | D166: Flange | F166: SK266 | G166: 1126 | H166: 4528-0001-P | I166: SP2701-04 | J166: SP1002-01 | K166: ALB | L166: SP1002-09 | Q166: 11653 | S166: AL6-200 | T166: 11654-200
A167: 11740-200 | B167: 40 | C167: 3/4" BSP | D167: Foot | E167: Bilge | F167: SK300 | G167: 11746 | H167: 17937-0001-P | I167: 21849 | J167: SP1005-03 | K167: 934-0000 | L167: SP1004-09 | T167: 10634
A168: 11740-200 | B168: 80 | C168: 1" Flanged | D168: Foot | E168: Cooling | F168: SK300 | G168: 816 | H168: 836-0001-P | I168: 21849 | J168: SP1005-03 | K168: 834 | L168: SP1005-04 | M168: SP2701-54 | N168: SP2601-37 | O168: SP2700-49 | P168: SP2601-37 | Q168: 11749-0000 | R168: 2574 | S168: 11745 (Div Pl) | T168: 11744-200
A169: 11740-205 | B169: 80 | C169: 1" BSP | D169: Foot | E169: Bilge | F169: SK300 | G169: 11746 | H169: 17937-0001-P | I169: 21849 | J169: SP1005-03 | K169: 934-0000 | L169: SP1004-09 | T169: 10634
A170: 11740-205 | B170: 200 | C170: 1-1/2" Flanged | D170: Foot | E170: Cooling | F170: SK300 | G170: 816 | H170: 836-0001-P | I170: 21849 | J170: SP1005-03 | K170: 2551 | L170: SP1005-05 | M170: SP2701-54 | N170: SP2601-37 | O170: SP2700-49 | P170: SP2601-37 | Q170: 11749-0000 | R170: 2574 | S170: 11745 (Div Pl) | T170: 11744-200
A171: 11790-01 | B171: 200 | C171: 1-1/2" Flanged | D171: Flange | F171: SK230 | G171: 816 | H171: 836-0001-P | I171: 21849 | J171: SP1005-04 | K171: 834 | L171: SP1005-04 | N171: SP2601-37 | O171: SP2701-54 | P171: SP2601-41 | Q171: 11258 | R171: 2574 | S171: 9336 | T171: 10584
A172: 11850-0101 | B172: 40 | C172: 1" Hose | D172: Flange | E172: 11850- 0701 | F172: SK117-02 | G172: 8641 | H172: 1210-0001-P | I172: SP6080-08 | J172: SP1026-01 | K172: 8528 | L172: SP1030- 0100 | M172: SP3000- 0090 | N172: SP2600- 0070 | Q172: 11977-0010 | R172: 8493 | S172: 9176 | T172: 11854-0410
A173: 11850-0701 | B173: 40 | C173: 1" Hose | D173: Flange | F173: SK117-02 | G173: 8641 | H173: 1210-0001-P | I173: SP6080-08 | J173: SP1026-01 | K173: 8528 | L173: SP1030- 0100 | M173: SP3000- 0090 | N173: SP2600- 0070 | Q173: 11977-0010 | R173: 8493 | S173: 9176 | T173: 11854-0410
A174: 11850-0701 | B174: 40 | C174: 1" Hose | D174: Flange | F174: 90117-0001 | G174: 8641-0000 | H174: 1210-0001-P | I174: 96080-0080 | J174: 91026-0010 | K174: 8528-0000 | L174: 91030-0110 | M174: 93000-0090 | N174: 92600-0070 | Q174: 11977-0000 | R174: 8493-0000 | S174: 12346-0000 | T174: 11854-0410
A175: 11850-0711 | B175: 40 | C175: 1" Hose | D175: Foot | F175: 90117-0001 | G175: 8641-0000 | H175: 1210-0001-P | I175: 96080-0080 | J175: 91026-0010 | K175: 8528-0000 | L175: 91030-0110 | M175: 93000-0090 | N175: 92600-0070 | Q175: 11977-0000 | R175: 8493-0000 | S175: 12346-0000 | T175: 11854-0410
A176: 11860-0001 | B176: 80 | C176: 1" NPT | D176: Foot | F176: 90118-0001 | G176: 890-0000 | H176: 920-0003-P | I176: 96080-0080 | J176: 91003-0010 | K176: 934-0000 | L176: 91004-0090 | M176: 913-0000 | N176: 92600-0540 | Q176: 11867-0000 | R176: 4156-0000 | S176: 11831-0000 | T176: 11864-0000
A177: 11860-0003 | B177: 80 | C177: 1" NPT | D177: Foot | F177: 90118-0003 | G177: 890-0000 | H177: 920-0003-P | I177: 96080-0080 | J177: 91003-0010 | K177: 934-0000 | L177: 91004-0090 | M177: 913-0000 | N177: 92600-0540 | Q177: 11867-0000 | R177: 4156-0000 | S177: 11831-0000 | T177: 11864-0000
A178: 11860-0004 | B178: 80 | C178: 1" NPT | D178: Foot | F178: 90118-0003 | G178: 890-0000 | H178: 920-0003-P | I178: 96080-0080 | J178: 91003-0010 | K178: 934-0000 | L178: 91004-0090 | M178: 913-0000 | N178: 92600-0540 | Q178: 11867-0000 | R178: 4156-0000 | S178: 11831-0000 | T178: 11864-0000
A179: 11860-0005 | B179: 80 | C179: 1" NPT | D179: Foot | F179: 90118-0003 | G179: 890-0000 | H179: 920-0003-P | I179: 96080-0080 | J179: 91003-0010 | K179: 934-0000 | L179: 91004-0090 | M179: 913-0000 | N179: 92600-0540 | Q179: 11867-0000 | R179: 4156-0000 | S179: 11831-0000 | T179: 11864-0000
A180: 11860-0006 | B180: 80 | C180: 1" NPT | D180: Foot | F180: 90118-0003 | G180: 890-0000 | H180: 920-0003-P | I180: 96080-0080 | J180: 91003-0010 | K180: 934-0000 | L180: 91004-0090 | M180: 913-0000 | N180: 92600-0540 | Q180: 11867-0000 | R180: 4156-0000 | S180: 11831-0000 | T180: 11864-0000
A181: 11860-0007 | B181: 80 | C181: 1" NPT | D181: Foot | F181: 90118-0003 | G181: 890-0000 | H181: 920-0003-P | I181: 96080-0080 | J181: 91003-0010 | K181: 934-0000 | L181: 91004-0090 | M181: 913-0000 | N181: 92600-0540 | Q181: 11867-0000 | R181: 4156-0000 | S181: 11831-0000 | T181: 11864-0000
A182: 11870-0001 | B182: 200 | C182: 1-1/4" NPT | D182: Foot | F182: 90062-0003 | G182: 816-0000 | H182: 836-0003-P | I182: 6407-0010 | J182: 91005-0040 | K182: 834-0001 | L182: 91004-0040 | M182: 817-0000 | N182: 92600-0040 | Q182: 11877-0000 | R182: 2574-0000 | S182: 12062-0000 | T182: 18753-0585
A183: 11870-0003 | B183: 200 | C183: 1-1/4" NPT | D183: Foot | F183: 90062-0003 | G183: 816-0000 | H183: 836-0003-P | I183: 6407-0010 | J183: 91005-0040 | K183: 834-0001 | L183: 91004-0040 | M183: 817-0000 | N183: 92600-0040 | Q183: 11877-0000 | R183: 2574-0000 | S183: 12062-0000 | T183: 18753-0585
A184: 11870-0004 | B184: 200 | C184: 1-1/4" NPT | D184: Foot | F184: 90062-0003 | G184: 816-0000 | H184: 836-0003-P | I184: 6407-0010 | J184: 91005-0040 | K184: 834-0001 | L184: 91004-0040 | M184: 817-0000 | N184: 92600-0040 | Q184: 11877-0000 | R184: 2574-0000 | S184: 12062-0000 | T184: 18753-0585
A185: 11870-0005 | B185: 200 | C185: 1-1/4" NPT | D185: Foot | F185: 90062-0003 | G185: 816-0000 | H185: 836-0003-P | I185: 6407-0010 | J185: 91005-0040 | K185: 834-0001 | L185: 91004-0040 | M185: 817-0000 | N185: 92600-0040 | Q185: 11877-0000 | R185: 2574-0000 | S185: 12062-0000 | T185: 18753-0585
A186: 11870-0006 | B186: 200 | C186: 1-1/4" NPT | D186: Foot | F186: 90062-0003 | G186: 816-0000 | H186: 836-0003-P | I186: 6407-0010 | J186: 91005-0040 | K186: 834-0001 | L186: 91004-0040 | M186: 817-0000 | N186: 92600-0040 | Q186: 11877-0000 | R186: 2574-0000 | S186: 12062-0000 | T186: 18753-0585
A187: 11870-0007 | B187: 200 | C187: 1-1/4" NPT | D187: Foot | F187: 90062-0003 | G187: 816-0000 | H187: 836-0003-P | I187: 6407-0010 | J187: 91005-0040 | K187: 834-0001 | L187: 91004-0040 | M187: 817-0000 | N187: 92600-0040 | Q187: 11877-0000 | R187: 2574-0000 | S187: 12062-0000 | T187: 18753-0585
A188: 12050-0001 | B188: 80 | C188: 3/4" Hose | D188: Flange | F188: 90117-0121 | G188: 8641-0080 | H188: 3085-0001-P | I188: 92700-0180 | J188: 91003-0090 | K188: 8528-0000 | L188: 91003-0110 | M188: 92700-0060 | N188: 92600-0070 | Q188: 12057-0000 | R188: 8493-0000 | S188: 12055-0000 | T188: 12054-0000
A189: 12280-0001 | B189: 80 | C189: 0 32 Hose | D189: Flange | F189: 90155-0001 | G189: 12288-0000 | H189: 17937-0001-P | I189: 96080-0080 | J189: 91003-0010 | M189: 913-0000 | N189: 92600-0060 | Q189: 12287-0000 | S189: 12294-0000 | T189: 12284-0000
A190: 12600-0001 | B190: 200 | C190: 3" Hose | D190: Flange | G190: 12608-0000 | H190: 17935-0001-P | I190: 6408-0000 | J190: 91005-0040 | K190: 12176-0000 | M190: 817-0000 | N190: 92600-0040 | Q190: 12607-0000 | R190: 12606-0000 | S190: 12179-0000 | T190: 12604-0000
A191: 12600-0011 | B191: 200 | C191: 3" Hose | D191: Flange | G191: 12608-0000 | H191: 17935-0001-P | I191: 6408-0000 | J191: 91005-0040 | K191: 12176-0000 | M191: 817-0000 | N191: 92600-0040 | Q191: 12607-0000 | R191: 12606-0000 | S191: 12179-0000 | T191: 12604-0000
A192: 12600-0021 | B192: 200 | C192: 3" Hose | D192: Flange | G192: 12608-0000 | H192: 17935-0001-P | I192: 6408-0000 | J192: 91005-0040 | K192: 12176-0000 | M192: 817-0000 | N192: 92600-0040 | Q192: 12607-0000 | R192: 12606-0000 | S192: 12179-0000 | T192: 12604-0000
A193: 14210-0001 | B193: 40 | C193: 3/4" Hose | D193: Flange | F193: 90111-0001 | G193: 3298-0000 | H193: 1210-0001-P | I193: 96080-0080 | J193: 91002-0020 | K193: 6148-0040 | L193: 91003-0070 | M193: 913-0000 | N193: 92600-0060 | Q193: 14217-0000 | R193: 7038-0000 | S193: 11830-0000 | T193: 14214-0000
A194: 14300-0001 | B194: 200 | C194: 1-1/2" Flanged | D194: Foot | G194: 816-0000 | H194: 17935-0001-P | I194: 6408-0000 | J194: 91005-0040 | K194: 834-0001 | L194: 91005-0040 | M194: 92701-0180 | N194: 92600-0260 | P194: 92600-0260 | Q194: 14307-0000 | R194: 2574-0000 | S194: 12062-0000 | T194: 10584-0010
A195: 14320-0001 | B195: 40 | G195: 10183-0000 | H195: 1210-0001-P | I195: 96080-0080 | J195: 91003-0010 | K195: 490-0000 | L195: 91003-0070 | N195: 92600-0460 | P195: 92600-0460 | Q195: Obsolete | S195: Obsolete | T195: Obsolete
A196: 14420-0001 | B196: 80 | C196: 1" NPT | F196: 90118-0001 | G196: 890-0000 | H196: 17937-0001-P | I196: 96080-0080 | J196: 91003-0010 | K196: 934-0000 | L196: 91003-0010 | M196: 913-0000 | N196: 92600-0540 | O196: 914-0000 | Q196: 6718-0000 | R196: 4156-0000 | S196: 11831-0000 | T196: 798-0020
A197: 14440-0001 | B197: 200 | C197: 2" Flanged | D197: Flange | G197: 816-0000 | H197: 17935-0001-P | I197: 6408-0000 | J197: 91095-0060 | K197: 834-0001 | L197: 91005-0040 | M197: 92701-0060 | N197: 92600-0260 | P197: 92600-0260 | Q197: Proprietary | R197: 2574-0000 | S197: 12062-0000 | T197: Proprietary
A198: 1673-0001 | B198: 40 | C198: 1/2" NPT | D198: Foot | F198: 90015-0001 | G198: 1835-0000 | H198: 1210-0001-P | I198: 92700-0060 | J198: 91003-0010 | K198: 490-0001 | L198: 91003-0010 | M198: 1554-0000 | N198: 92600-0330 | Q198: 1737-0410 | S198: 11836-0000 | T198: 9094-0000
A199: 1673-0003 | B199: 40 | C199: 1/2" NPT | D199: Foot | F199: 90015-0003 | G199: 1835-0000 | H199: 1210-0003-P | I199: 92700-0060 | J199: 91003-0010 | K199: 490-0001 | L199: 91003-0010 | M199: 1554-0000 | N199: 92600-0330 | Q199: 1737-0410 | S199: 11836-0000 | T199: 9094-0000
A200: 1673-1001 | B200: 40 | C200: 1/2" NPT | D200: Foot | F200: 90015-0001 | G200: 18753-0133 | H200: 1210-0001-P | I200: 92700-0060 | J200: 91003-0010 | K200: 490-0000 | L200: 91003-0010 | N200: 18753-0130 | P200: 18753-0130 | Q200: 18753-0129 | S200: 11836-0000 | T200: 18753-0128
... 727 more rows

Sheet Obsolete
A1: PART NUMBER TRANSLATION
A2: PUMP | B2: OBSOLETE JABSCO PART NUMBER | C2: CURRENT JABSCO PART NUMBER | D2: DESCRIPTION
A3: 52200-2011 | B3: 9336 | C3: 10773-0000 | D3: END COVER BRASS 200/270
A4: 52200-2011 | B4: X3001-176F | C4: X3003-176F-P | D4: SCREW M6 X 10
A9: JABSCO OBSOLETE LIST | B9: 4850 | C9: 9750 | D9: Pump
A10: JABSCO OBSOLETE LIST | B10: 4860 | C10: 9760 | D10: Pump
A11: JABSCO OBSOLETE LIST | B11: 9710 | C11: 9710-200 | D11: Pump
A12: JABSCO OBSOLETE LIST | B12: 9900 | C12: 29470-2231C | D12: Pump
A13: JABSCO OBSOLETE LIST | B13: 10420 | C13: 29490-2001C | D13: Pump
A14: JABSCO OBSOLETE LIST | B14: 10490 | C14: 52270-0011 | D14: Pump
A15: JABSCO OBSOLETE LIST | B15: 10590 | C15: 10590-22 | D15: Pump
A16: JABSCO OBSOLETE LIST | B16: 10630 | C16: 52220-0011 | D16: Pump
A17: JABSCO OBSOLETE LIST | B17: 10650 | C17: 51220-0011 | D17: Pump
A18: JABSCO OBSOLETE LIST | B18: 10660 | C18: 51270-0011 | D18: Pump
A19: JABSCO OBSOLETE LIST | B19: 10670 | C19: 50220-0011 | D19: Pump
A20: JABSCO OBSOLETE LIST | B20: 10680 | C20: 50270-0011 | D20: Pump
A21: JABSCO OBSOLETE LIST | B21: 10880 | C21: 10880-07 | D21: Pump
A22: JABSCO OBSOLETE LIST | B22: 21890 | C22: 10880-2611 | D22: Pump
A23: JABSCO OBSOLETE LIST | B23: 22620 | C23: 29440-1101 | D23: Pump
A24: JABSCO OBSOLETE LIST | B24: 22770 | C24: 29440-1001 | D24: Pump
A25: JABSCO OBSOLETE LIST | B25: 10490-0201 | C25: 50270-0911 | D25: Pump
A26: JABSCO OBSOLETE LIST | B26: 10490-07 | C26: 52270-0011 | D26: Pump
A27: JABSCO OBSOLETE LIST | B27: 10490-207 | C27: 52270-0011 | D27: Pump
A28: JABSCO OBSOLETE LIST | B28: 10590-01 | C28: 11101-01-01 | D28: Pump
A29: JABSCO OBSOLETE LIST | B29: 10590-0141 | C29: 10590-0041 | D29: Pump
A30: JABSCO OBSOLETE LIST | B30: 10590-21 | C30: 10590-22 | D30: Pump
A31: JABSCO OBSOLETE LIST | B31: 10590-61 | C31: 10590-62 | D31: Pump
A32: JABSCO OBSOLETE LIST | B32: 10630-01 | C32: 52220-0011 | D32: Pump
A33: JABSCO OBSOLETE LIST | B33: 10630-07 | C33: 52220-0011 | D33: Pump
A34: JABSCO OBSOLETE LIST | B34: 10630-200 | C34: 52220-0011 | D34: Pump
A35: JABSCO OBSOLETE LIST | B35: 10630-207 | C35: 52220-0011 | D35: Pump
A36: JABSCO OBSOLETE LIST | B36: 10630-57 | C36: 52220-0011 | D36: Pump
A37: JABSCO OBSOLETE LIST | B37: 10650-0003 | C37: 51220-0011 | D37: Pump
A38: JABSCO OBSOLETE LIST | B38: 10650-200 | C38: 51200-2011 | D38: Pump
A39: JABSCO OBSOLETE LIST | B39: 10660-0003 | C39: 51270-0011 | D39: Pump
A40: JABSCO OBSOLETE LIST | B40: 10660-200 | C40: 51270-2011 | D40: Pump
A41: JABSCO OBSOLETE LIST | B41: 10670-0003 | C41: 50220-0011 | D41: Pump
A42: JABSCO OBSOLETE LIST | B42: 10670-01 | C42: 50220-0111 | D42: Pump
A43: JABSCO OBSOLETE LIST | B43: 10670-0103 | C43: 50220-0111 | D43: Pump
A44: JABSCO OBSOLETE LIST | B44: 10670-0203 | C44: 50220-0211 | D44: Pump
A45: JABSCO OBSOLETE LIST | B45: 10670-0303 | C45: 50220-0311 | D45: Pump
A46: JABSCO OBSOLETE LIST | B46: 10670-10 | C46: 50220-0211 | D46: Pump
A47: JABSCO OBSOLETE LIST | B47: 10670-11 | C47: 50220-0311 | D47: Pump
A48: JABSCO OBSOLETE LIST | B48: 10670-200 | C48: 50200-2011 | D48: Pump
A49: JABSCO OBSOLETE LIST | B49: 10670-201 | C49: 50200-2111 | D49: Pump
A50: JABSCO OBSOLETE LIST | B50: 10670-210 | C50: 50200-2211 | D50: Pump
A51: JABSCO OBSOLETE LIST | B51: 10670-211 | C51: 50200-2311 | D51: Pump
A52: JABSCO OBSOLETE LIST | B52: 10680-0003 | C52: 50270-0011 | D52: Pump
A53: JABSCO OBSOLETE LIST | B53: 10680-01 | C53: 50270-0111 | D53: Pump
A54: JABSCO OBSOLETE LIST | B54: 10680-0103 | C54: 50270-0111 | D54: Pump
A55: JABSCO OBSOLETE LIST | B55: 10680-0203 | C55: 50270-0211 | D55: Pump
A56: JABSCO OBSOLETE LIST | B56: 10680-0303 | C56: 50270-0311 | D56: Pump
A57: JABSCO OBSOLETE LIST | B57: 10680-10 | C57: 50270-0211 | D57: Pump
A58: JABSCO OBSOLETE LIST | B58: 10680-11 | C58: 50270-0311 | D58: Pump
A59: JABSCO OBSOLETE LIST | B59: 10680-200 | C59: 50270-2011 | D59: Pump
A60: JABSCO OBSOLETE LIST | B60: 10680-201 | C60: 50270-2111 | D60: Pump
A61: JABSCO OBSOLETE LIST | B61: 10680-210 | C61: 50270-2211 | D61: Pump
A62: JABSCO OBSOLETE LIST | B62: 10680-211 | C62: 50270-2311 | D62: Pump
A63: JABSCO OBSOLETE LIST | B63: 10880-2461 | C63: 10880-2561 | D63: Pump
A64: JABSCO OBSOLETE LIST | B64: 10950-200 | C64: 10950-2401 | D64: Pump
A65: JABSCO OBSOLETE LIST | B65: 10950-201 | C65: 10950-2401 | D65: Pump
A66: JABSCO OBSOLETE LIST | B66: 10950-204 | C66: 10950-2401 | D66: Pump
A67: JABSCO OBSOLETE LIST | B67: 10950-205 | C67: 10950-2401 | D67: Pump
A68: JABSCO OBSOLETE LIST | B68: 10950-2101 | C68: 10950-2401 | D68: Pump
A69: JABSCO OBSOLETE LIST | B69: 10950-2141 | C69: 10950-2401 | D69: Pump
A70: JABSCO OBSOLETE LIST | B70: 10950-2201 | C70: 10950-2601 | D70: Pump
A71: JABSCO OBSOLETE LIST | B71: 10950-2241 | C71: 10950-2601 | D71: Pump
A72: JABSCO OBSOLETE LIST | B72: 10950-2441 | C72: 10950-2601 | D72: Pump
A73: JABSCO OBSOLETE LIST | B73: 10950-2451 | C73: 10950-2601 | D73: Pump
A74: JABSCO OBSOLETE LIST | B74: 10950-2701 | C74: 10950-2401 | D74: Pump
A75: JABSCO OBSOLETE LIST | B75: 10980-01 | C75: 10980-0051 | D75: Pump
A76: JABSCO OBSOLETE LIST | B76: 11260-200 | C76: 29300-2101C | D76: Pump
A77: JABSCO OBSOLETE LIST | B77: 11260-205 | C77: 29300-2151C | D77: Pump
A78: JABSCO OBSOLETE LIST | B78: 11260-2101 | C78: 29300-2201C | D78: Pump
A79: JABSCO OBSOLETE LIST | B79: 11260-2151 | C79: 29300-2151C | D79: Pump
A80: JABSCO OBSOLETE LIST | B80: 11620-200 | C80: 22830-2101 | D80: Pump
A81: JABSCO OBSOLETE LIST | B81: 11850-0101 | C81: 11850-0701 | D81: Pump
A82: JABSCO OBSOLETE LIST | B82: 21090-200 | C82: 21090-204 | D82: Pump
A83: JABSCO OBSOLETE LIST | B83: 21130-200 | C83: 21130-2101 | D83: Pump
A84: JABSCO OBSOLETE LIST | B84: 21140-200 | C84: 21140-2401 | D84: Pump
A85: JABSCO OBSOLETE LIST | B85: 21140-201 | C85: 21140-2401 | D85: Pump
A86: JABSCO OBSOLETE LIST | B86: 21140-204 | C86: 21140-2401 | D86: Pump
A87: JABSCO OBSOLETE LIST | B87: 21140-2101 | C87: 21140-2601 | D87: Pump
A88: JABSCO OBSOLETE LIST | B88: 21140-2141 | C88: 21140-2601 | D88: Pump
A89: JABSCO OBSOLETE LIST | B89: 21140-2201 | C89: 21140-2601 | D89: Pump
A90: JABSCO OBSOLETE LIST | B90: 21140-2241 | C90: 21140-2601 | D90: Pump
A91: JABSCO OBSOLETE LIST | B91: 21820-200 | C91: 52040-2001 | D91: Pump
A92: JABSCO OBSOLETE LIST | B92: 21820-2001 | C92: 52040-2001 | D92: Pump
A93: JABSCO OBSOLETE LIST | B93: 21820-2003 | C93: 52040-2003 | D93: Pump
A94: JABSCO OBSOLETE LIST | B94: 21820-2021 | C94: 52040-2021 | D94: Pump
A95: JABSCO OBSOLETE LIST | B95: 21960-200 | C95: 50080-2001 | D95: Pump
A96: JABSCO OBSOLETE LIST | B96: 21960-2003 | C96: 50080-2003 | D96: Pump
A97: JABSCO OBSOLETE LIST | B97: 21960-210 | C97: 50080-2101 | D97: Pump
A98: JABSCO OBSOLETE LIST | B98: 21960-2103 | C98: 50080-2103 | D98: Pump
A99: JABSCO OBSOLETE LIST | B99: 21960-211 | C99: 50080-2201 | D99: Pump
A100: JABSCO OBSOLETE LIST | B100: 21960-2203 | C100: 50080-2203 | D100: Pump
A101: JABSCO OBSOLETE LIST | B101: 21960-221 | C101: 50080-2301 | D101: Pump
A102: JABSCO OBSOLETE LIST | B102: 21960-2303 | C102: 50080-2303 | D102: Pump
A103: JABSCO OBSOLETE LIST | B103: 22040-0131 | C103: 22040-0501 | D103: Pump
A104: JABSCO OBSOLETE LIST | B104: 22740-0251 | C104: 22740-0151 | D104: Pump
A105: JABSCO OBSOLETE LIST | B105: 22740-0301 | C105: 22740-0201 | D105: Pump
A106: JABSCO OBSOLETE LIST | B106: 22750-05 | C106: 22750-1101 | D106: Pump
A107: JABSCO OBSOLETE LIST | B107: 22770-1051 | C107: 29440-1051 | D107: Pump
A108: JABSCO OBSOLETE LIST | B108: 22770-1101 | C108: 29440-1101 | D108: Pump
A109: JABSCO OBSOLETE LIST | B109: 22770-1201 | C109: 29440-1201 | D109: Pump
A110: JABSCO OBSOLETE LIST | B110: 22940-2001 | C110: 52010-2001 | D110: Pump
A111: JABSCO OBSOLETE LIST | B111: 22950-2031 | C111: 52020-2001 | D111: Pump
A112: JABSCO OBSOLETE LIST | B112: 22950-2037 | C112: 52020-2001 | D112: Pump
A113: JABSCO OBSOLETE LIST | B113: 23328-0000 | C113: 23328-9000 | D113: Pump
A114: JABSCO OBSOLETE LIST | B114: 23387-0000 | C114: 23387-0020 | D114: Pump
A115: JABSCO OBSOLETE LIST | B115: 23800-0251 | C115: 23800-0201 | D115: Pump
A116: JABSCO OBSOLETE LIST | B116: 23800-0351 | C116: 23800-0401 | D116: Pump
A117: JABSCO OBSOLETE LIST | B117: 2620-211 | C117: 2620-200 | D117: Pump
A118: JABSCO OBSOLETE LIST | B118: 2620-221 | C118: 2620-200 | D118: Pump
A119: JABSCO OBSOLETE LIST | B119: 2620-254 | C119: 2620-252 | D119: Pump
A120: JABSCO OBSOLETE LIST | B120: 2620-281 | C120: 2620-252 | D120: Pump
A121: JABSCO OBSOLETE LIST | B121: 29470-0231 | C121: 29470-1231 | D121: Pump
A122: JABSCO OBSOLETE LIST | B122: 29470-0231C | C122: 29470-1231C | D122: Pump
A123: JABSCO OBSOLETE LIST | B123: 29850-0031 | C123: 29880-0001 | D123: Pump
A124: JABSCO OBSOLETE LIST | B124: 3200-01 | C124: 9440-200 | D124: Pump
A125: JABSCO OBSOLETE LIST | B125: 3270-200 | C125: 29500-1001 | D125: Pump
A126: JABSCO OBSOLETE LIST | B126: 3370-200 | C126: 9970-200 | D126: Pump
A127: JABSCO OBSOLETE LIST | B127: 3370-251 | C127: 9970-261 | D127: Pump
A128: JABSCO OBSOLETE LIST | B128: 3380-200 | C128: 9970-200 | D128: Pump
A129: JABSCO OBSOLETE LIST | B129: 3380-221 | C129: 9970-200 | D129: Pump
A130: JABSCO OBSOLETE LIST | B130: 4530-200 | C130: AL1/4-200 | D130: Pump
A131: JABSCO OBSOLETE LIST | B131: 4530-237 | C131: AL1/4-237 | D131: Pump
A132: JABSCO OBSOLETE LIST | B132: 4590-200 | C132: JD3/4-200 | D132: Pump
A133: JABSCO OBSOLETE LIST | B133: 4590-237 | C133: JD3/4-237 | D133: Pump
A134: JABSCO OBSOLETE LIST | B134: 4800-111 | C134: 11790 | D134: Pump
A135: JABSCO OBSOLETE LIST | B135: 4800-21 | C135: 4800-21-01 | D135: Pump
A136: JABSCO OBSOLETE LIST | B136: 52200-2001 | C136: 52200-2011 | D136: Pump
A137: JABSCO OBSOLETE LIST | B137: 5400-205 | C137: 52200-2051 | D137: Pump
A138: JABSCO OBSOLETE LIST | B138: 6400-200 | C138: 52200-2001 | D138: Pump
A139: JABSCO OBSOLETE LIST | B139: 6400-205 | C139: 52200-2051 | D139: Pump
A140: JABSCO OBSOLETE LIST | B140: 6400-207 | C140: 52200-2011 | D140: Pump
A141: JABSCO OBSOLETE LIST | B141: 6400-207 | C141: 52200-2001 | D141: Pump
A142: JABSCO OBSOLETE LIST | B142: 6420-0101 | C142: 52220-0011 | D142: Pump
A143: JABSCO OBSOLETE LIST | B143: 6420-200 | C143: 52080-2001 | D143: Pump
A144: JABSCO OBSOLETE LIST | B144: 6420-2001 | C144: 52080-2001 | D144: Pump
A145: JABSCO OBSOLETE LIST | B145: 6420-2003 | C145: 52080-2003 | D145: Pump
A146: JABSCO OBSOLETE LIST | B146: 6420-204 | C146: 52080-2041 | D146: Pump
A147: JABSCO OBSOLETE LIST | B147: 6420-2041 | C147: 52080-2041 | D147: Pump
A148: JABSCO OBSOLETE LIST | B148: 6420-205 | C148: 52080-2051 | D148: Pump
A149: JABSCO OBSOLETE LIST | B149: 6420-2051 | C149: 52080-2051 | D149: Pump
A150: JABSCO OBSOLETE LIST | B150: 6520-200 | C150: 51080-2001 | D150: Pump
A151: JABSCO OBSOLETE LIST | B151: 6520-2001 | C151: 51080-2001 | D151: Pump
A152: JABSCO OBSOLETE LIST | B152: 6520-2003 | C152: 51080-2003 | D152: Pump
A153: JABSCO OBSOLETE LIST | B153: 6520-237 | C153: 51080-2001 | D153: Pump
A154: JABSCO OBSOLETE LIST | B154: 6520-251 | C154: 51080-2001 | D154: Pump
A155: JABSCO OBSOLETE LIST | B155: 6590-200 | C155: 51200-2011 | D155: Pump
A156: JABSCO OBSOLETE LIST | B156: 6590-237 | C156: 51200-2003 | D156: Pump
A157: JABSCO OBSOLETE LIST | B157: 6640-200 | C157: 52010-2001 | D157: Pump
A158: JABSCO OBSOLETE LIST | B158: 6640-205 | C158: 52010-2001 | D158: Pump
A159: JABSCO OBSOLETE LIST | B159: 7420-0004 | C159: 7420-0101 | D159: Pump
A160: JABSCO OBSOLETE LIST | B160: 9430-01 | C160: 11650-200 | D160: Pump
A161: JABSCO OBSOLETE LIST | B161: 9430-211 | C161: 29300-2601C | D161: Pump
A162: JABSCO OBSOLETE LIST | B162: 9700-101 | C162: 9700-04 | D162: Pump
A163: JABSCO OBSOLETE LIST | B163: 9700-141 | C163: 9700-04 | D163: Pump
A164: JABSCO OBSOLETE LIST | B164: 9700-21 | C164: 29600-1001 | D164: Pump
A165: JABSCO OBSOLETE LIST | B165: 9970-251 | C165: 9970-241 | D165: Pump
A166: JABSCO OBSOLETE LIST | B166: 9970-271 | C166: 9970-200 | D166: Pump
A167: JABSCO OBSOLETE LIST | B167: 9990-21 | C167: 9990-41 | D167: Pump
A168: JABSCO OBSOLETE LIST | B168: B3/8-200 | C168: 6540-200 | D168: Pump
A169: JABSCO OBSOLETE LIST | B169: 2877-0001 | C169: 4568-0001B | D169: Impeller
A170: JABSCO OBSOLETE LIST | B170: 2877-0003 | C170: 4568-0003B | D170: Impeller
A171: JABSCO OBSOLETE LIST | B171: 653-0001 | C171: 18653-0001B | D171: Impeller
A172: JABSCO OBSOLETE LIST | B172: AL24 | C172: 4528-0001B | D172: Impeller
A173: JABSCO OBSOLETE LIST | B173: AL24-37 | C173: 4528-0003B | D173: Impeller
A174: JABSCO OBSOLETE LIST | B174: B12-37 | C174: 4527-0003B | D174: Impeller
A175: JABSCO OBSOLETE LIST | B175: C12 | C175: 4568-0001 B | D175: Impeller
A176: JABSCO OBSOLETE LIST | B176: C12-37 | C176: 4568-0003B | D176: Impeller
A177: JABSCO OBSOLETE LIST | B177: D12 | C177: 4598-0001B | D177: Impeller
A178: JABSCO OBSOLETE LIST | B178: D12-37 | C178: 4598-0003B | D178: Impeller
A179: JABSCO OBSOLETE LIST | B179: 10135 | C179: 3625-1150 | D179: Bearing
A180: JABSCO OBSOLETE LIST | B180: SP2600-02 | C180: SP2600-11 | D180: Bearing
A181: JABSCO OBSOLETE LIST | B181: SP2600-0420 | C181: SP2601-42 | D181: Bearing
A182: JABSCO OBSOLETE LIST | B182: SP2601-18 | C182: SP2600-18 | D182: Bearing
A183: JABSCO OBSOLETE LIST | B183: 22307 | C183: 22317 | D183: Bearing Housing
A184: JABSCO OBSOLETE LIST | B184: 22314 | C184: 22317 | D184: Bearing Housing
A185: JABSCO OBSOLETE LIST | B185: 22754 | C185: 22317-0010 | D185: Bearing Housing
A186: JABSCO OBSOLETE LIST | B186: 22304-0020 | C186: 22304-02 | D186: Body
A187: JABSCO OBSOLETE LIST | B187: 4534-0000 | C187: AL4-200 | D187: Body
A188: JABSCO OBSOLETE LIST | B188: 4594-200 | C188: JD4-200 | D188: Body
A189: JABSCO OBSOLETE LIST | B189: SP1095-0090 | C189: SP1095-09 | D189: Bolt
A190: JABSCO OBSOLETE LIST | B190: 9420 | C190: 934-0000 | D190: Cam
A191: JABSCO OBSOLETE LIST | B191: 4538-0000 | C191: ALB | D191: Cam
A192: JABSCO OBSOLETE LIST | B192: 4538-0010 | C192: ALB-01 | D192: Cam
A193: JABSCO OBSOLETE LIST | B193: 3266 | C193: 7884 | D193: Cam/Wearplate
A194: JABSCO OBSOLETE LIST | B194: 3996 | C194: 9336 | D194: End Cover
A195: JABSCO OBSOLETE LIST | B195: 5522 | C195: AL6-200 | D195: End Cover
A196: JABSCO OBSOLETE LIST | B196: 4595-200 | C196: D6-01-200 | D196: End Cover
A197: JABSCO OBSOLETE LIST | B197: 3288 | C197: 3298 | D197: Gasket
A198: JABSCO OBSOLETE LIST | B198: 5212 | C198: 3298 | D198: Gasket
A199: JABSCO OBSOLETE LIST | B199: 11417 | C199: 890 | D199: Gasket
A200: JABSCO OBSOLETE LIST | B200: SP1401-0100 | C200: SP1401-10 | D200: Key
A201: JABSCO OBSOLETE LIST | B201: SP1402-12 | C201: 9214 | D201: Key
A202: JABSCO OBSOLETE LIST | B202: 818 | C202: SP2700-49 | D202: Lip Seal
A203: JABSCO OBSOLETE LIST | B203: 913 | C203: SP2700-48 | D203: Lip Seal
A204: JABSCO OBSOLETE LIST | B204: 914 | C204: SP2700-47 | D204: Lip Seal
... 275 more rows
